Cogmind - Beta 13 X1 @@@ ROGUE MODE // 2023.08.03 @ 23:47:08 Player: Runia Result: Escaped singularity! Performance ------------- Evolutions (9) 4500 Regions Visited (36) 7200 Robots Destroyed (518) 2590 Value Destroyed (29483) 29483 Prototype IDs (119) 2380 Alien Tech Used (15) 3000 Bonus (52099) 52099 TOTAL SCORE: 101252 Bonus ------- High Alert Combat Kills 4706 Follower Combat Kills 1276 Network Hubs Disabled 200 Aligned with FarCom 300 Met Data Miner 300 Met Imprinter 300 Destroyed Z-Imprinter 1000 Triggered Deep Caves Wall 500 Exposed GOLEM Chamber 500 Met Warlord at Base 500 MAIN.C Attacked Warlord 500 Warlord Defense Kills 488 Met R17 at Cetus 500 Used Core Reset Matrix 3000 Scanned by Researcher 500 Destroyed MAIN.C Guards 500 Met MAIN.C 5000 Destroyed MAIN.C Shell 5000 Destroyed MAIN.C 10000 Met Warlord at Command 2000 Met Architect 300 Destroyed A8 300 Destroyed A6 400 Destroyed A5 500 Destroyed Architect 15000 Win 3000 Friendly Fire -4471 Cogmind --------- Core Integrity 86/1600 Matter 410/425 Energy 348/350 System Corruption 0% Temperature Cool (0) Movement Core (50) Location Near Former Tau Ceti IV Parts ------- > --- POWER (3) -------- (None) > --- PROPULSION (7) --- (None) > --- UTILITY (11) ----- (None) > --- WEAPON (4) ------- (None) > --- INVENTORY (5) ---- Vortex Chain Reactor Experimental Biometal Leg Experimental Cooling System Integrity Redistributor Peak State ------------ > --- POWER ------------ Improved Quantum Reactor Zero-point Reactor Zero-point Reactor > --- PROPULSION ------- Centrium Leg Centrium Leg Centrium Leg High-density Centrium Leg High-density Centrium Leg High-density Centrium Leg Experimental Biometal Leg > --- UTILITY ---------- Experimental Cooling System Experimental Coolant Injector Huge Storage Unit Advanced Targeting Computer Experimental Core Analyzer Quantum Capacitor Centrium Medium Armor Plating Heavy Regenerative Plating AEGIS Remote Shield > --- WEAPON ----------- Improved Potential Cannon Sigix Broadsword > --- INVENTORY -------- Experimental Biometal Heavy Treads Enhanced Biometal Leg Experimental Energy Well Experimental Energy Well Experimental Matter Compressor Experimental Terrain Scan Processor Matter Filter Precision Matter Filter Precision Energy Filter Heavy Regenerative Plating AEGIS Remote Shield Transdimensional Reconstructor Transdimensional Reconstructor Integrity Redistributor Terrabomb Spacefold Activator Compact HERF Cannon Compact HERF Cannon Enhanced Nova Cannon Enhanced Nova Cannon Improved Potential Cannon Z-bomb Delivery System [Rating: 256] Favorites ----------- Power Zero-point Reactor Engine Improved Deuterium Engine Power Core Light Nuclear Core Reactor Zero-point Reactor Propulsion Enhanced Biometal Leg Treads Armored Treads Leg Enhanced Biometal Leg Wheel Compact Wheel Utility Huge Storage Unit Device Quantum Capacitor Storage Huge Storage Unit Processor Experimental Targeting Computer Hackware System Mapper Protection Assembled Alloy Armor Weapon Longsword +1 Energy Gun Backup Laser III Energy Cannon Assembled Focal Cannon Ballistic Gun Improved Assault Rifle Ballistic Cannon Hypervelocity Linear Accelerator Launcher Mini Smartbomb Launcher Special Weapon RU-N14's Throwing Claymores Slashing Weapon Longsword +1 Piercing Weapon Lance Special Melee Weapon Advanced Datajack Build | -11 -10 -10 -9 -9 -9 -8 -8 -7 -7 -7 -7 -7 -6 -6 -6 -6 -6 -5 -5 -5 -5 -5 -4 -4 -4 -4 -4 -4 -3 -3 -2 -2 -2 -1 -1 -1 ------- Run | Jun Mat Min Mat Min Exi Min Mat Fac Low Low Zio Dee Pro Fac Low Low Dat Pro Fac Upp Upp War Pro Fac Ext Cet Arc Hub Res Tes Res Qua Sec Acc Com Ac0 Slots Evolved 18 | . . . 2 . . . 2 2 . . . . . 2 . . . . 2 . . . . 2 . . . . 2 . 2 . . 2 . . Power 2 | . . . . . . . . . . . . . . 1 . . . . . . . . . . . . . . 1 . . . . . . . Propulsion 5 | . . . . . . . 2 . . . . . . . . . . . . . . . . 2 . . . . . . 1 . . . . . Utility 9 | . . . 2 . . . . 2 . . . . . 1 . . . . 2 . . . . . . . . . 1 . 1 . . . . . Weapon 2 | . . . . . . . . . . . . . . . . . . . . . . . . . . . . . . . . . . 2 . . Parts Attached 722 | 2 14 7 50 6 15 4 31 8 11 2 5 27 2 6 1 2 10 . 11 12 13 15 16 10 15 5 2 10 33 80 26 26 73 13 146 13 Power 44 | . 1 1 3 . 2 . 1 1 1 . . 1 . 1 . . . . . . . 3 . . . . . 2 3 1 3 2 9 2 6 1 Engine 7 | . 1 . 3 . 1 . 1 . 1 . . . . . . . . . . . . . . . . . . . . . . . . . . . Core 2 | . . 1 . . . . . 1 . . . . . . . . . . . . . . . . . . . . . . . . . . . . Reactor 35 | . . . . . 1 . . . . . . 1 . 1 . . . . . . . 3 . . . . . 2 3 1 3 2 9 2 6 1 Propulsion 108 | 2 4 1 9 2 2 . 13 1 2 . 1 1 . 1 . . 2 . 1 . . 1 . 4 . 1 1 . 4 5 9 2 11 . 27 1 Treads 34 | 2 2 1 7 1 1 . 11 . 2 . 1 1 . 1 . . . . . . . . . . . . . . . . . . . . 4 . Leg 65 | . . . . . . . . . . . . . . . . . 2 . 1 . . 1 . 4 . 1 1 . 4 5 9 2 11 . 23 1 Wheel 9 | . 2 . 2 1 1 . 2 1 . . . . . . . . . . . . . . . . . . . . . . . . . . . . Hover . | . . . . . . . . . . . . . . . . . . . . . . . . . . . . . . . . . . . . . Flight . | . . . . . . . . . . . . . . . . . . . . . . . . . . . . . . . . . . . . . Utility 351 | . 4 2 11 4 6 2 2 3 . . . 8 2 2 1 . 6 . 9 9 7 8 5 4 12 2 . 5 11 52 9 11 43 9 99 3 Device 241 | . 1 . 4 2 3 1 . . . . . 3 1 . 1 . 2 . 6 8 5 8 5 3 7 . . 5 4 46 7 8 41 8 59 3 Storage 21 | . 2 . . . . . . 1 . . . 1 . . . . 1 . 1 . . . . . 1 . . . . 1 . . . . 13 . Processor 33 | . . . 1 . . 1 . 1 . . . . . 1 . . . . 1 . . . . . 1 . . . 2 2 . . 1 . 22 . Hackware 8 | . . . . . . . . 1 . . . . . 1 . . . . 1 . . . . 1 . . . . 1 . 1 2 . . . . Protection 48 | . 1 2 6 2 3 . 2 . . . . 4 1 . . . 3 . . 1 2 . . . 3 2 . . 4 3 1 1 1 1 5 . Artifact . | . . . . . . . . . . . . . . . . . . . . . . . . . . . . . . . . . . . . . Weapon 219 | . 5 3 27 . 5 2 15 3 8 2 4 17 . 2 . 2 2 . 1 3 6 3 11 2 3 2 1 3 15 22 5 11 10 2 14 8 Energy Gun 2 | . . . 1 . . . . . . . . . . . . . . . . . . . . . . . . . . 1 . . . . . . Energy Cannon 99 | . . . 6 . . . . . 2 1 1 6 . 1 . . . . 1 1 3 . 6 1 1 2 . 1 14 18 4 7 7 1 10 5 Ballistic Gun 29 | . 4 2 11 . 2 1 8 . 1 . . . . . . . . . . . . . . . . . . . . . . . . . . . Ballistic Cannon 1 | . . . . . . . . . . . . . . . . . . . . . . . . . . . . . . . . . . . . 1 Launcher 39 | . . . 7 . 1 1 7 1 3 . 1 3 . . . . . . . 1 . 1 5 1 1 . . 1 . 1 1 1 . . 2 . Special Weapon 20 | . 1 1 . . . . . . . . 1 4 . 1 . 2 1 . . 1 2 1 . . . . . . 1 . . 1 3 . . . Impact Weapon . | . . . . . . . . . . . . . . . . . . . . . . . . . . . . . . . . . . . . . Slashing Weapon 25 | . . . . . 2 . . 2 2 1 1 4 . . . . 1 . . . 1 1 . . 1 . . 1 . 2 . 1 . 1 2 2 Piercing Weapon 1 | . . . . . . . . . . . . . . . . . . . . . . . . . . . . . . . . 1 . . . . Special Melee Weapon 3 | . . . 2 . . . . . . . . . . . . . . . . . . . . . . . 1 . . . . . . . . . Unidentified Prototypes 53 | . . . 3 1 4 . . . . . 2 4 . . . . 1 . 1 . . 6 . 1 . 1 . . 2 5 . 1 5 1 14 1 Corrupted Parts 2 | . . . . . . . . . . . . . . . . . . . . . . . . . . . . . . . 2 . . . . . System Corruption 12 | . . . . . . . . . . . . . . . . . . . . . . . . . . . . . . . 12 . . . . . Parts Lost 72 | . 3 4 4 2 2 1 7 1 . . . 3 . . . . 1 . . . 1 . . 1 4 1 . 1 1 3 4 4 7 . 8 9 Power 16 | . . 1 . . 1 . 1 1 . . . . . . . . . . . . . . . . . . . 1 1 2 1 1 4 . 1 1 Propulsion 12 | . 2 . 1 1 . . 4 . . . . . . . . . . . . . . . . . . 1 . . . . . . 2 . 1 . Utility 33 | . . 2 2 1 1 1 1 . . . . 3 . . . . 1 . . . 1 . . 1 3 . . . . 1 2 1 1 . 6 5 Weapon 11 | . 1 1 1 . . . 1 . . . . . . . . . . . . . . . . . 1 . . . . . 1 2 . . . 3 Highest Loss Streak 4 | . 3 3 1 2 2 1 2 1 . . . 2 . . . . 1 . . . 1 . . 1 2 1 . 1 1 1 3 1 2 . 4 4 To Critical Strikes 4 | . . . . . . . . . . . . . . . . . . . . . . . . . . 1 . . . . . . 1 . . 2 Average Slot Usage (%) 89 | . 99 93 96 99 99 97 98 89 92 92 92 86 92 99 86 85 85 86 87 87 88 93 93 94 86 88 89 86 93 94 89 79 82 87 82 78 Engine 2 | . 14 5 10 11 6 . 4 4 3 7 7 6 . . . . . . . . . . . . . . . . . . . . . . . . Reactor 6 | . . . . . 4 11 4 . . . . . 7 13 6 6 6 6 5 5 5 5 5 5 5 5 5 5 12 13 10 12 11 12 11 11 Treads 6 | . 20 14 11 11 11 11 32 18 15 15 15 15 15 13 13 13 3 . . . . . . . . . . . . . . . . . 1 4 Leg 16 | . . . . . . . . . . . . 4 15 13 13 13 21 26 23 23 23 23 23 31 31 31 31 31 27 28 27 21 24 28 24 19 Wheel 2 | . 7 14 10 10 10 11 2 5 7 7 7 4 . . . . . . . . . . . . . . . . . . . . . . . . Device 12 | . 3 . 10 11 6 16 9 7 7 7 7 8 7 11 12 13 13 13 16 16 17 22 22 15 13 10 10 12 10 14 16 10 11 11 15 18 Storage 8 | . 14 14 11 11 11 11 9 7 7 7 7 9 15 13 13 13 13 13 11 11 11 11 11 10 10 10 10 10 9 9 8 4 4 4 4 4 Processor 7 | . . . 7 11 11 14 13 12 15 15 15 7 . 1 . . . . . 5 5 5 5 5 5 5 5 5 9 11 8 8 8 8 11 8 Hackware 2 | . . . . . . . . 5 7 7 7 2 . 6 . . . . 4 . . . . 4 5 5 5 5 6 2 3 8 8 8 . . Protection 7 | . 10 14 11 10 14 . 3 7 7 7 7 7 15 13 13 13 12 13 11 11 10 11 11 10 4 9 10 5 3 3 3 4 4 4 3 3 Energy Cannon 5 | . . . 9 11 . . . . 3 14 7 7 7 9 13 6 6 6 7 10 8 5 8 9 5 5 5 5 3 3 4 3 6 8 4 5 Ballistic Gun 3 | . 25 27 10 11 14 10 14 8 7 . . . . . . . . . . . . . . . . . . . . . . . . . . . Slashing Weapon 2 | . . . . . 6 11 2 5 2 . 6 3 . . . . 3 . . . 1 3 . . 3 5 . 4 4 3 2 . . 3 3 2 Naked Turns 3 | . . . . . . . . . . . . . . . . . . . . . . . . . . . . . . . . . . . . 3 Heaviest Build 241 | 10 90 92 107 105 105 102 101 99 107 107 107 128 128 145 159 158 159 159 172 177 178 173 169 167 168 150 148 150 171 189 186 188 199 203 241 166 Greatest Support 230 | 40 40 16 43 43 16 10 87 82 28 28 28 60 60 60 60 60 116 116 116 108 108 110 110 166 158 158 150 150 164 176 210 170 210 210 230 160 Greatest Overweight (x) 48 | . 5 5 6 6 10 10 6 3 3 3 3 4 2 2 2 2 2 1 2 1 1 1 1 1 1 1 48 . 1 1 1 1 1 . 1 1 Average Overweight (x) 1 | . 2 5 5 5 7 10 1 2 3 3 3 3 2 2 2 2 1 1 1 1 1 1 1 . . . 24 . . . . . . . . . Largest Inventory Capacity 25 | 8 25 25 25 25 25 25 25 25 25 25 25 25 25 25 25 25 25 25 25 25 25 25 25 25 25 25 25 25 25 25 25 25 25 25 25 15 Average Capacity 24 | 8 18 25 25 25 25 25 25 25 25 25 25 24 25 25 25 25 25 25 25 25 25 25 25 25 25 25 25 25 25 25 25 25 25 25 24 14 Most Carried 25 | 6 22 21 25 25 25 25 25 25 25 25 25 25 25 25 25 25 25 25 25 25 25 25 25 25 25 25 25 25 25 25 25 25 25 25 25 15 Average Carried 23 | 5 12 18 23 24 24 25 23 25 23 24 24 24 25 24 24 24 24 25 24 24 23 23 24 24 24 24 24 24 24 24 23 23 24 24 23 13 Final Capacity 25 | 8 25 25 25 25 25 25 25 25 25 25 25 25 25 25 25 25 25 25 25 25 25 25 25 25 25 25 25 25 25 25 25 25 25 25 15 5 Final Carried 25 | 4 20 18 24 25 25 25 25 25 24 25 25 25 25 25 25 25 25 25 25 25 20 24 24 24 25 25 25 24 25 24 25 24 25 25 15 5 Class Distribution -------------------- 31% | Scavenger-Mutant 21% | Mutant 18% | Alien-Mutant 11% | Hacker-Mutant 8% | Scavenger-Golem 4% | Golem Dominant Class ---------------- Mutant | -10/Materials Mutant | -10/Mines Mutant | -9/Materials Mutant | -9/Mines Scavenger-Mutant | -9/Exiles Mutant | -8/Mines Scavenger-Mutant | -8/Materials Scavenger-Mutant | -7/Factory Scavenger-Mutant | -7/Lower Caves Scavenger-Mutant | -7/Lower Caves Scavenger-Mutant | -7/Zion Scavenger-Mutant | -7/Deep Caves Mutant | -6/Proximity Caves Scavenger-Mutant | -6/Factory Golem | -6/Lower Caves Golem | -6/Lower Caves Scavenger-Golem | -6/Data Miner Scavenger-Golem | -5/Proximity Caves Scavenger-Golem | -5/Factory Scavenger-Golem | -5/Upper Caves Scavenger-Golem | -5/Upper Caves Scavenger-Mutant | -5/Warlord Scavenger-Mutant | -4/Proximity Caves Scavenger-Mutant | -4/Factory Hacker-Mutant | -4/Extension Commander-Mutant | -4/Cetus Scavenger-Mutant | -4/Archives Scavenger-Mutant | -4/Hub_04(d) Hacker-Mutant | -3/Research Hacker-Mutant | -3/Testing Hacker-Mutant | -2/Research Wizard-Mutant | -2/Quarantine Hacker-Mutant | -2/Section 7 Alien-Mutant | -1/Access Alien-Mutant | -1/Command Alien-Mutant | -1/Access_0 Resources | -11 -10 -10 -9 -9 -9 -8 -8 -7 -7 -7 -7 -7 -6 -6 -6 -6 -6 -5 -5 -5 -5 -5 -4 -4 -4 -4 -4 -4 -3 -3 -2 -2 -2 -1 -1 -1 ----------- Run | Jun Mat Min Mat Min Exi Min Mat Fac Low Low Zio Dee Pro Fac Low Low Dat Pro Fac Upp Upp War Pro Fac Ext Cet Arc Hub Res Tes Res Qua Sec Acc Com Ac0 Matter Collected 11566 | 200 387 104 971 91 366 97 1213 33 575 32 44 432 64 170 10 20 95 . 60 175 139 208 176 157 203 60 2 98 382 802 455 124 1396 120 1990 115 Remotely 50 | . . . . . . . . . . . . . . . . . . . . . . . . . . . . . . . . . . . 50 . Salvage Created 29461 | . 675 244 1901 193 456 136 1914 107 170 . . 685 . 593 . 40 432 150 822 375 251 209 284 1155 1050 442 177 403 1376 2382 1095 1607 4706 923 3353 1155 Parts 1359 | . 47 13 89 12 62 3 101 12 16 . . 13 2 32 . 3 24 8 46 19 9 7 12 50 50 17 8 13 73 120 46 60 186 45 131 30 Haulers Intercepted 16 | . 2 . 6 . . . 2 . . . . . . . . . . . . . . . . 1 . . . 1 1 2 . . 1 . . . Recyclers Shooed 14 | . 1 2 4 1 . . 1 . . . . . . 1 . . . . . . . . . . 1 . . . 1 . . . . 2 . . Parts Field Recycled . | . . . . . . . . . . . . . . . . . . . . . . . . . . . . . . . . . . . . . Retrieved Matter . | . . . . . . . . . . . . . . . . . . . . . . . . . . . . . . . . . . . . . Parts Self-Destructed 57 | . . . . . . . . . 8 . . . 2 . . 3 . 7 . 17 9 . 11 . . . . . . . . . . . . . Prevented 3 | . . . . . . . . . 1 1 . . . . . 1 . . . . . . . . . . . . . . . . . . . . Kills | -11 -10 -10 -9 -9 -9 -8 -8 -7 -7 -7 -7 -7 -6 -6 -6 -6 -6 -5 -5 -5 -5 -5 -4 -4 -4 -4 -4 -4 -3 -3 -2 -2 -2 -1 -1 -1 ------- Run | Jun Mat Min Mat Min Exi Min Mat Fac Low Low Zio Dee Pro Fac Low Low Dat Pro Fac Upp Upp War Pro Fac Ext Cet Arc Hub Res Tes Res Qua Sec Acc Com Ac0 Combat Hostiles Destroyed 455 | . 16 4 36 2 3 3 26 4 6 . . 54 2 8 . 1 4 4 9 10 7 4 11 18 14 6 2 4 16 30 16 16 49 10 37 23 Melee 13 | . . . . . 1 . . . 1 . . 1 . . . . 4 . . . . . . . 1 . . . . 5 . . . . . . Guns 50 | . 16 4 10 1 . 1 18 . . . . . . . . . . . . . . . . . . . . . . . . . . . . . Cannons 169 | . . . 13 1 . . . . 1 . . 3 . 7 . 1 . 2 7 5 3 1 2 11 10 3 2 1 11 15 7 7 21 6 18 11 AOE 141 | . . . 12 . 2 2 8 4 4 . . 48 2 1 . . . 2 2 5 4 3 9 7 3 . . . 2 3 6 4 1 . 2 5 Classes Destroyed 32 | . 3 1 6 1 3 . 2 . 1 . . 3 1 3 . . . . . . 1 . . 2 . . . . . 1 2 1 . 1 . . Worker 16 | . . . 3 . . . 4 1 . . . . . 1 . . . . . . . . . . . . . . . 1 . 3 2 . 1 . Builder 16 | . . . 2 1 . . 4 . . . . . . . . . . . 1 . . . . . 2 . . . . 2 . 4 . . . . Tunneler 2 | . . . 1 1 . . . . . . . . . . . . . . . . . . . . . . . . . . . . . . . . Hauler 16 | . 2 . 6 . . . 2 . . . . . . . . . . . . . . . . 1 . . . 1 1 2 . . 1 . . . Recycler 23 | . . 1 6 1 . . 4 . . . . . . 1 . . . . 2 . . . . 1 1 . . . . . 1 1 2 1 1 . Mechanic 2 | . . . . . . . . . . . . . . . . . . . . . . . . . . . . . . . . 2 . . . . Operator 8 | . . . 2 . . . . 1 . . . . . 1 . . . . . . . . . . 1 . 1 1 . . . . . . 1 . Drone 5 | . . . . . . . . . . . . . 2 . . . . 1 . . . . 2 . . . . . . . . . . . . . Turret 1 | . . . . . 1 . . . . . . . . . . . . . . . . . . . . . . . . . . . . . . . Watcher 15 | . . . . . . . 2 1 . . . . . . . . . . 2 . . . . . . . . . 2 2 1 3 1 . 1 . Swarmer 44 | . 5 . 7 . . . 1 4 4 . . . . . . . . . . 5 1 . 5 4 2 . . . . . 3 . 1 . 2 . Grunt 149 | . 11 4 20 1 . 2 19 . . . . . . 2 . . . 3 . 2 3 1 3 8 4 . . 1 3 14 2 12 21 1 12 . Brawler 6 | . . . . . . . . . . . . . . 1 . . . . . 1 . 1 . . . . . 1 . . . . . . 2 . Duelist 13 | . . . . 1 . 1 . . . . . . . . . . . . . . . 1 1 1 . . . . . . . 1 3 . 4 . Protector 3 | . . . 1 . . . . . . . . . . . . . . . . . . . . . . . . . . . . . 1 . 1 . Researcher 1 | . . . . . . . . . . . . . . . . . . . . . . . . . . . . . . 1 . . . . . . Sentry 34 | . . . 8 . . . 4 . . . . . . 2 . . . . 1 2 . . . . 6 . 2 . 3 . 2 . 4 . . . Specialist 5 | . . . . . . . . . . . . . . . . . . . . . . . . 2 . . . . . . . . 2 . 1 . Hunter 29 | . . . . . . . 2 . 1 . . . . 1 . . . . 2 . 1 . . 2 2 . . 2 4 3 . . 3 4 2 . Programmer 52 | . . . . . . . . . . . . . . 1 . 1 . . 6 . . 1 . . . 1 . . 6 13 1 3 8 3 8 . Heavy 2 | . . . . . . . . . . . . . . . . . . . . . . . . 1 . . . . . . . . 1 . . . Q-Series 2 | . . . . . . . . . . . . . . . . . . . . . . . . . . . . . . . . . . 2 . . Behemoth 1 | . . . . . . . . . . . . . . 1 . . . . . . . . . . . . . . . . . . . . . . Cetus Guard 5 | . . . . . . . . . . . . . . . . . . . . . . . . . . 5 . . . . . . . . . . S7 Guard 1 | . . . . . . . . . . . . . . . . . . . . . . . . . . . . . . . . . 1 . . . M Guard 2 | . . . . . . . . . . . . . . . . . . . . . . . . . . . . . . . . . . . 2 . Enhanced Grunt 15 | . . . . . . . . . . . . . . . . . 4 . . . . . . . . . . . . . . . . . . 11 Enhanced Sentry 1 | . . . . . . . . . . . . . . . . . . . . . . . . . . . . . . . . . . . . 1 Enhanced Hunter 7 | . . . . . . . . . . . . . . . . . . . . . . . . . . . . . . . . . . . . 7 Combat Programmer 2 | . . . . . . . . . . . . . . . . . . . . . . . . . . . . . . . . . . . 2 . Striker 2 | . . . . . . . . . . . . . . . . . . . . . . . . . . . . . . . 2 . . . . . Executioner 10 | . . . . . . . . . . . . . . . . . . . . . . . . . . . . . . . 6 . 4 . . . Zionite 4 | . . . . . 4 . . . . . . . . . . . . . . . . . . . . . . . . . . . . . . . Z-Technician 4 | . . . . . . . . . . . . 4 . . . . . . . . . . . . . . . . . . . . . . . . Z-Light 7 | . . . . . . . . . . . . 7 . . . . . . . . . . . . . . . . . . . . . . . . Master Thief 2 | . . . . . . . . . . . . . . . . . . . . . 2 . . . . . . . . . . . . . . . Assembler 2 | . . . . . . . . . . . . 2 . . . . . . . . . . . . . . . . . . . . . . . . Assembled 45 | . . . . . 2 . . . . . . 43 . . . . . . . . . . . . . . . . . . . . . . . . Golem 3 | . . . . . . . . . . . . 3 . . . . . . . . . . . . . . . . . . . . . . . . Mutant 1 | . . . . . . . . . 1 . . . . . . . . . . . . . . . . . . . . . . . . . . . Commander 1 | . . . . . . . . . . . . . . . . . . . . . 1 . . . . . . . . . . . . . . . Best Kill Streak 40 | . 3 3 11 3 4 3 8 6 4 . . 40 1 3 . 1 1 3 4 5 3 2 5 9 5 3 2 3 4 4 10 13 8 5 6 4 Combat Bots Only 38 | . 3 2 10 2 2 3 4 4 4 . . 38 1 3 . 1 1 3 4 5 3 2 5 8 4 3 2 2 3 4 10 7 6 5 6 4 Max Kills in Single Turn 23 | . 1 1 2 1 1 2 2 3 4 . . 23 1 2 . 1 1 2 2 3 2 2 2 4 3 1 1 1 2 3 2 4 1 1 2 2 Gunslinging . | . . . . . . . . . . . . . . . . . . . . . . . . . . . . . . . . . . . . . Exploded 22 | . . . 2 . 1 2 2 3 4 . . 22 1 1 . . . 2 2 3 2 2 2 4 2 . . . 2 3 2 2 1 . 2 1 Melee 1 | . . . . . 1 . . . 1 . . 1 . . . . 1 . . . . . . . 1 . . . . 1 . . . . . . Uniques/NPCs Destroyed 11 | . . . . . 4 . . . . . . 1 . . . . 1 . . . . . . . . . . . . . . . . . 1 4 8R-AWN (-9/Exiles) EX-HEX (-9/Exiles) EX-BIN (-9/Exiles) EX-DEC (-9/Exiles) Z-Imprinter (-7/Deep Caves) Data Miner (-6/Data Miner) MAIN.C (-1/Command) A8 (-1/Access_0) A6 (-1/Access_0) A5 (-1/Access_0) Architect (-1/Access_0) Combat | -11 -10 -10 -9 -9 -9 -8 -8 -7 -7 -7 -7 -7 -6 -6 -6 -6 -6 -5 -5 -5 -5 -5 -4 -4 -4 -4 -4 -4 -3 -3 -2 -2 -2 -1 -1 -1 -------- Run | Jun Mat Min Mat Min Exi Min Mat Fac Low Low Zio Dee Pro Fac Low Low Dat Pro Fac Upp Upp War Pro Fac Ext Cet Arc Hub Res Tes Res Qua Sec Acc Com Ac0 Damage Taken 34662 | . 715 771 1107 128 409 113 1708 129 254 . . 943 . 452 51 46 864 67 567 128 171 113 195 914 1082 233 50 911 830 1547 2204 1376 4572 588 4750 6674 Core 2909 | . 93 106 94 22 30 14 162 26 29 . . 84 . 17 . . 112 . 60 5 5 13 . 74 112 14 . 62 51 32 275 31 423 21 226 716 Absorbed by Shields 16080 | . . . . . . . . . . . . . . . . . . . 514 142 188 30 56 301 738 52 . . . 606 897 1424 1321 521 3656 5634 Reduced by Siege Mode 135 | . . . . . . . . . . . . . . . . . . . . . . . . . . . . . . . . . . . 51 84 Ignored by Resistances 1676 | . . . . . . . . . . . . . . 92 10 12 167 12 217 56 74 29 53 253 . . . . . . . . 102 136 399 64 Regen/Repaired (Parts) 9145 | . . . 85 . . . 155 . . . . . . . . . . . 49 . . . . . . . . . 249 57 173 563 1760 384 4258 1412 Core Remaining (%) 65 | 100 . 20 . . . 60 70 . . . . . 80 . . . . 84 . . . . 91 . . . . 77 . 93 . . 44 . . 5 Volleys Fired 1891 | . 72 28 124 13 30 9 143 5 6 1 . 33 3 40 16 8 . 15 57 29 21 5 19 55 88 28 13 25 79 129 75 93 232 67 195 135 Largest 2 | . 2 2 2 2 1 1 2 2 2 2 . 2 1 2 1 2 . 1 2 2 2 1 2 2 1 1 1 1 1 1 1 1 1 1 2 2 Hottest 320 | . 100 100 136 98 33 30 53 53 138 138 . 138 . 115 25 25 . 25 115 115 115 25 115 115 90 90 90 90 120 200 120 120 120 120 240 320 Shots Fired 2260 | . 143 55 235 26 30 9 191 7 8 2 . 40 3 46 16 10 . 15 72 44 26 5 28 87 88 28 13 25 79 130 75 91 232 67 198 136 Gun 585 | . 142 54 159 13 27 7 177 4 2 . . . . . . . . . . . . . . . . . . . . . . . . . . . Cannon 1548 | . . . 60 13 . . . . 2 2 . 17 . 39 16 7 . 14 72 41 12 3 22 83 87 28 13 25 77 127 70 88 231 67 196 136 Launcher 82 | . . . 16 . 3 2 14 3 4 . . 13 . . . . . . . 3 . . 6 4 1 . . . . 3 5 3 . . 2 . Special 45 | . 1 1 . . . . . . . . . 10 3 7 . 3 . 1 . . 14 2 . . . . . . 2 . . . 1 . . . Kinetic 581 | . 142 54 155 13 27 7 177 4 2 . . . . . . . . . . . . . . . . . . . . . . . . . . . Thermal 1131 | . 1 1 64 13 . . . . . . . 3 . 39 16 7 . 14 72 41 12 3 22 83 87 5 13 16 44 74 58 65 107 47 101 123 Explosive 122 | . . . 16 . 3 2 14 3 4 . . 23 3 7 . 3 . 1 . 3 14 2 6 4 1 . . . . 3 5 3 . . 2 . Electromagnetic 423 | . . . . . . . . . 2 2 . 14 . . . . . . . . . . . . . 23 . 9 33 53 12 23 124 20 95 13 Robot Hit Streak 26 | . 9 8 14 21 12 10 10 4 5 7 . 26 . 12 . 18 . 2 9 8 4 4 5 16 15 10 14 15 10 15 21 11 21 25 17 20 Robot Miss Streak 4 | . 4 4 4 1 3 1 4 . . . . 1 2 2 . . . 2 3 1 2 1 3 4 3 4 . 2 2 3 3 2 3 2 4 3 Penetration Max 2 | . . . . . 1 . 2 . . . . . . . . . . . . . . . . . . . . . . . . . . . . . Secondary Targets 3 | . . 2 . . . . 1 . . . . . . . . . . . . . . . . . . . . . . . . . . . . . Max Gunslinging Chain 1 | . . 1 . . . . 1 . . . . . . . . . . . . . . . . . . . . . . . . . . . . . Capacitor 1099 | . . . . . . . . . . . . . . . . . . . . . . . . . 87 28 13 25 77 119 70 88 226 67 185 114 Shots Hit Robots 1526 | . 95 34 150 19 53 6 106 5 6 2 . 35 . 28 . 6 33 6 38 21 24 4 12 50 72 21 15 13 45 78 45 56 167 41 146 94 Core Hits 915 | . 44 17 79 7 23 7 70 9 8 . . 80 2 15 . 2 13 6 17 18 13 9 16 39 34 8 6 6 27 52 32 36 67 16 61 76 Critical Kills 31 | . 1 1 2 . . 1 14 1 . . . . . . . . . . . . . . . . . . . . . . . 2 2 2 1 4 Critical Parts Destroyed 40 | . . . 1 1 6 3 28 1 . . . . . . . . . . . . . . . . . . . . . . . . . . . . Critical Strikes 98 | . 1 1 4 1 8 4 42 2 . . . 3 . 2 . . 2 . . . 5 . . . 2 . . . . 4 . 2 5 2 4 4 Burn 1 | . . . 1 . . . . . . . . . . . . . . . . . . . . . . . . . . . . . . . . . Meltdown 12 | . . . 1 . . . . . . . . . . . . . . . . . . . . . . . . . . . . 2 2 2 1 4 Destroy 59 | . 1 1 2 1 6 4 42 2 . . . . . . . . . . . . . . . . . . . . . . . . . . . . Corrupt 6 | . . . . . . . . . . . . . . . . . . . . . . . . . . . . . . 1 . . 2 . 3 . Sever 20 | . . . . . 2 . . . . . . 3 . 2 . . 2 . . . 5 . . . 2 . . . . 3 . . 1 . . . Melee Attacks 326 | . . . . . 42 . 1 10 6 3 24 10 . . . . 68 . . . 7 20 . . 11 1 2 1 4 32 2 . 13 . 68 1 Impact . | . . . . . . . . . . . . . . . . . . . . . . . . . . . . . . . . . . . . . Slashing 324 | . . . . . 42 . 1 10 6 3 24 10 . . . . 68 . . . 7 20 . . 11 1 . 1 4 32 2 . 13 . 68 1 Piercing . | . . . . . . . . . . . . . . . . . . . . . . . . . . . . . . . . . . . . . Sneak Attacks 26 | . . . . . 2 . . . . . . 4 . . . . 1 . . . 7 . . . 1 . 2 1 2 1 . . 5 . . . Combat Hostiles . | . . . . . . . . . . . . . . . . . . . . . . . . . . . . . . . . . . . . . Follow-up Attacks . | . . . . . . . . . . . . . . . . . . . . . . . . . . . . . . . . . . . . . Damage Inflicted 99627 | . 761 319 3813 400 2432 295 3500 593 585 60 . 7565 259 2086 . 516 1529 544 1980 1269 2593 999 1104 3040 3439 694 491 638 2021 4269 3197 4491 8373 1675 11098 22999 Guns 5136 | . 761 319 1219 171 317 105 2190 54 . . . . . . . . . . . . . . . . . . . . . . . . . . . . Cannons 49297 | . . . 825 229 . . . . 31 60 . 376 . 995 . 276 . 206 1732 916 275 135 396 2069 2778 694 491 503 1615 3007 1841 2618 6924 1675 5874 12756 Explosions 33386 | . . . 1769 . 119 190 1310 444 334 . . 6173 259 850 . 208 . 298 248 353 1320 830 708 971 329 . . . 133 491 1356 1873 507 . 2070 10243 Melee 10702 | . . . . . 1996 . . 95 220 . . 659 . . . . 1529 . . . 606 . . . 332 . . 135 273 761 . . 942 . 3154 . Ramming 10 | . . . . . . . . . . . . . . . . . . . . . . . . . . . . . . 10 . . . . . . Kinetic 5080 | . 761 319 1163 171 317 105 2190 54 . . . . . . . . . . . . . . . . . . . . . . . . . . . . Thermal 50552 | . . . 881 229 . . . . . . . 80 . 995 . 276 . 206 1980 916 275 135 475 2176 2874 182 491 222 831 1495 1477 2360 3518 1028 4798 22652 Explosive 19721 | . . . 1769 . 119 190 1310 444 334 . . 6173 259 850 . 208 . 298 . 353 1320 830 629 755 152 . . . . 399 1356 1434 . . 539 . Electromagnetic 12466 | . . . . . . . . . 31 60 . 296 . . . . . . . . . . . 109 81 512 . 281 917 1604 364 697 3913 647 2607 347 Impact . | . . . . . . . . . . . . . . . . . . . . . . . . . . . . . . . . . . . . . Slashing 11798 | . . . . . 1996 . . 95 220 . . 1016 . 241 . 32 1529 40 . . 998 34 . . 332 . . 135 273 761 . . 942 . 3154 . Piercing . | . . . . . . . . . . . . . . . . . . . . . . . . . . . . . . . . . . . . . Highest Corruption 17 | . . . . . . . . . . . . . . . . . . . 1 1 1 1 . . . . . 4 1 8 15 17 . . . . Average Corruption 3 | . . . . . . . . . . . . . . . . . . . 1 1 1 1 . . . . . 1 1 2 14 15 . . . . Corruption Purged 11 | . . . . . . . . . . . . . . . . . . . . . . . . . . . . . . 11 . . . . . . Corruption Blocked 10 | . . . . . . . . . . . . . . . . . . . . . . . . . . . . . . . 10 . . . . . Effects 88 | . . . . . . . . . . . . . . . . . . . . 7 8 1 . . . . . 1 5 27 21 18 . . . . Message Errors 19 | . . . . . . . . . . . . . . . . . . . . 2 2 . . . . . . . . 2 7 6 . . . . Matter Fused 17 | . . . . . . . . . . . . . . . . . . . . 2 3 . . . . . . 1 1 4 1 5 . . . . Heat Flow Errors 12 | . . . . . . . . . . . . . . . . . . . . . 1 . . . . . . . 1 4 5 1 . . . . Energy Discharges 16 | . . . . . . . . . . . . . . . . . . . . . . 1 . . . . . . 2 8 2 3 . . . . Parts Rejected 2 | . . . . . . . . . . . . . . . . . . . . . . . . . . . . . . 1 1 . . . . . Parts Fused 1 | . . . . . . . . . . . . . . . . . . . . . . . . . . . . . . 1 . . . . . . Data Loss (minor) 9 | . . . . . . . . . . . . . . . . . . . . 1 2 . . . . . . . 1 4 . 1 . . . . Data Loss (major) 2 | . . . . . . . . . . . . . . . . . . . . . . . . . . . . . . 1 1 . . . . . Misfires 3 | . . . . . . . . . . . . . . . . . . . . 1 . . . . . . . . . 1 1 . . . . . Alerts 4 | . . . . . . . . . . . . . . . . . . . . 1 . . . . . . . . . 1 2 . . . . . Weapon Failures 3 | . . . . . . . . . . . . . . . . . . . . . . . . . . . . . . . 1 2 . . . . Overload Shots . | . . . . . . . . . . . . . . . . . . . . . . . . . . . . . . . . . . . . . Overflow Damage 3965 | . . . 36 . 28 . 57 80 . 11 . 642 . 117 . 15 33 . 80 37 71 18 14 104 106 . . 8 56 226 69 365 343 15 622 812 Projectiles 1909 | . . . 15 . . . . . . 11 . 11 . 117 . 5 . . 80 37 10 . . 86 38 . . 8 15 142 48 107 274 15 310 580 Explosions 1299 | . . . 21 . 10 . 57 55 . . . 338 . . . 10 . . . . 47 18 14 18 . . . . . . 21 258 69 . 131 232 Melee 757 | . . . . . 18 . . 25 . . . 293 . . . . 33 . . . 14 . . . 68 . . . 41 84 . . . . 181 . Knockbacks . | . . . . . . . . . . . . . . . . . . . . . . . . . . . . . . . . . . . . . Impact . | . . . . . . . . . . . . . . . . . . . . . . . . . . . . . . . . . . . . . Kinetic . | . . . . . . . . . . . . . . . . . . . . . . . . . . . . . . . . . . . . . Secondary . | . . . . . . . . . . . . . . . . . . . . . . . . . . . . . . . . . . . . . Self-Inflicted Damage 1157 | . . . 50 . 21 52 58 . . . . 26 . . . . . . . 45 . . 5 102 105 . . . . . 173 185 . . 57 278 Shots 28 | . . . 4 . 1 2 2 . . . . 1 . . . . . . . 2 . . 1 3 2 . . . . . 3 3 . . 1 3 Rammed . | . . . . . . . . . . . . . . . . . . . . . . . . . . . . . . . . . . . . . Targets Rammed 1 | . . . . . . . . . . . . . . . . . . . . . . . . . . . . . . 1 . . . . . . Kicked 1 | . . . . . . . . . . . . . . . . . . . . . . . . . . . . . . 1 . . . . . . Crushed . | . . . . . . . . . . . . . . . . . . . . . . . . . . . . . . . . . . . . . Highest Temperature 483 | . 55 135 162 . . . . . . . . 102 . 192 . . . . 195 263 165 . 5 245 317 195 196 315 262 483 308 240 384 264 252 196 Average Temperature 87 | . 16 61 32 . . . . . . . . 35 . 55 . . . . 73 78 82 . 3 81 92 94 114 113 82 103 96 99 105 86 70 94 Received Heat Transfer 3746 | . 228 258 441 36 . 36 801 . 12 . . 186 . 105 12 . . 36 17 16 70 9 30 191 120 31 9 105 81 201 55 125 431 4 100 . Effects 23 | . . . . . . . . . . . . . . . . . . . . . . . . . . . . 3 . 6 1 1 12 . . . Shutdowns 5 | . . . . . . . . . . . . . . . . . . . . . . . . . . . . . . 2 . . 3 . . . Energy Bleed 5 | . . . . . . . . . . . . . . . . . . . . . . . . . . . . . . 2 1 1 1 . . . Interference 11 | . . . . . . . . . . . . . . . . . . . . . . . . . . . . 3 . 2 . . 6 . . . Matter Decay 2 | . . . . . . . . . . . . . . . . . . . . . . . . . . . . . . . . . 2 . . . Siege Activations 12 | . . . . . . . . . . . . . . . . . . . . . . . . . . . . . . . . . . . 2 10 Total Turns 153 | . . . . . . . . . . . . . . . . . . . . . . . . . . . . . . . . . . . 57 96 Longest Duration 33 | . . . . . . . . . . . . . . . . . . . . . . . . . . . . . . . . . . . 33 33 Robots Corrupted 72 | . . . . . . . . . . . . 2 . . . . . . . . . . . . . 3 . 3 3 7 3 5 25 2 16 3 Combat Hostiles 72 | . . . . . . . . . . . . 2 . . . . . . . . . . . . . 3 . 3 3 7 3 5 25 2 16 3 Parts Fried 117 | . . . . . . . . . . . . . . . . . . . . . . . . . 1 3 . 1 7 21 1 3 44 5 27 4 Impact Corruptions . | . . . . . . . . . . . . . . . . . . . . . . . . . . . . . . . . . . . . . Robots Melted 12 | . . . 1 . . . . . . . . . . . . . . . . . . . . . . . . . . . . 2 2 2 1 4 Combat Hostiles 10 | . . . 1 . . . . . . . . . . . . . . . . . . . . . . . . . . . . . 2 2 1 4 Parts Melted 47 | . . . 7 1 . . . . . . . . . . . 1 . . . . . . . . 1 . . . 1 1 1 3 8 9 10 4 Heat Transferred 24031 | . . . 1665 333 . . . . . . . 111 . 450 . 125 . 125 675 300 100 49 150 750 475 . . . 655 1233 1295 1717 2805 999 2771 7248 Parts Sabotaged 2 | . . . . . . . . . . . . . . . . . . . . . . . . . . . . . . . . . . . 2 . Parts Stolen 9 | . . . . . . . . . 2 . . . . . . 1 . . . . 6 . . . . . . . . . . . . . . . Parts Stripped . | . . . . . . . . . . . . . . . . . . . . . . . . . . . . . . . . . . . . . Power Chain Reactions 12 | . . . . . . . . . . . . . . . . . . . 2 . . . 1 2 2 . . . 1 . . 1 3 . . . Missiles Intercepted . | . . . . . . . . . . . . . . . . . . . . . . . . . . . . . . . . . . . . . Alert | -11 -10 -10 -9 -9 -9 -8 -8 -7 -7 -7 -7 -7 -6 -6 -6 -6 -6 -5 -5 -5 -5 -5 -4 -4 -4 -4 -4 -4 -3 -3 -2 -2 -2 -1 -1 -1 ------- Run | Jun Mat Min Mat Min Exi Min Mat Fac Low Low Zio Dee Pro Fac Low Low Dat Pro Fac Upp Upp War Pro Fac Ext Cet Arc Hub Res Tes Res Qua Sec Acc Com Ac0 Peak Influence 1243 | . 222 76 688 331 . 76 600 453 . . . . . 157 . . . . 156 . . . . 708 794 899 521 238 304 856 940 1027 1243 772 865 . Initial 745 | . . 2 . 268 . . 29 273 . . . . . . . . . . . . . . . 278 346 381 359 20 15 92 481 528 126 745 200 . Average 331 | . 64 16 352 163 . 73 338 295 . . . . . 69 . . . . 37 . . . . 459 374 648 280 116 92 310 605 534 627 464 658 . Maximum Alert Level 4 | . 1 . 2 1 . . 2 2 . . . . . . . . . . . . . . . 3 3 3 2 1 1 3 3 3 4 3 3 . Low Security (%) 30 | 100 93 100 34 64 . 100 25 . . . . . . 100 . . . . 100 . . . . . 9 . 46 91 90 35 . . 11 20 . . Level 1 18 | . 6 . 14 35 . . 40 97 . . . . . . . . . . . . . . . 38 56 8 27 8 9 29 19 36 29 36 1 . Level 2 16 | . . . 50 . . . 34 2 . . . . . . . . . . . . . . . 52 26 63 25 . . 27 45 34 14 . 3 . Level 3 34 | . . . . . . . . . . . . . . . . . . . . . . . . 9 7 27 . . . 7 34 28 36 43 95 . Level 4 . | . . . . . . . . . . . . . . . . . . . . . . . . . . . . . . . . . 7 . . . Level 5 . | . . . . . . . . . . . . . . . . . . . . . . . . . . . . . . . . . . . . . High Security . | . . . . . . . . . . . . . . . . . . . . . . . . . . . . . . . . . . . . . Max Security . | . . . . . . . . . . . . . . . . . . . . . . . . . . . . . . . . . . . . . Squads Dispatched 74 | . 4 . 7 . . . 6 2 . . . . . 1 . . . . 2 . . . . 3 3 . . 3 6 13 . 6 11 2 5 . Investigation 9 | . 1 . 3 . . . 1 . . . . . . . . . . . . . . . . . 2 . . . . . . 2 . . . . Extermination 24 | . . . . . . . . 1 . . . . . . . . . . 2 . . . . 1 . . . . 3 6 . 3 4 1 3 . Reinforcement 30 | . 3 . 2 . . . 5 1 . . . . . 1 . . . . . . . . . 2 1 . . 3 3 4 . . 4 1 . . Assault 11 | . . . 2 . . . . . . . . . . . . . . . . . . . . . . . . . . 3 . 1 3 . 2 . Garrison . | . . . . . . . . . . . . . . . . . . . . . . . . . . . . . . . . . . . . . Intercept . | . . . . . . . . . . . . . . . . . . . . . . . . . . . . . . . . . . . . . Searches Triggered . | . . . . . . . . . . . . . . . . . . . . . . . . . . . . . . . . . . . . . Construction Impeded 3 | . . . . . . . 3 . . . . . . . . . . . . . . . . . . . . . . . . . . . . . Haulers Reinforced 5 | . . . . . . . . . . . . . . 1 . . . . . . . . . . . . . 1 2 1 . . . . . . Active Scanning Responses . | . . . . . . . . . . . . . . . . . . . . . . . . . . . . . . . . . . . . . Cargo Convoy Interrupts . | . . . . . . . . . . . . . . . . . . . . . . . . . . . . . . . . . . . . . Stealth | -11 -10 -10 -9 -9 -9 -8 -8 -7 -7 -7 -7 -7 -6 -6 -6 -6 -6 -5 -5 -5 -5 -5 -4 -4 -4 -4 -4 -4 -3 -3 -2 -2 -2 -1 -1 -1 --------- Run | Jun Mat Min Mat Min Exi Min Mat Fac Low Low Zio Dee Pro Fac Low Low Dat Pro Fac Upp Upp War Pro Fac Ext Cet Arc Hub Res Tes Res Qua Sec Acc Com Ac0 Distress Signals 58 | . . . 5 . . . 6 . . . . . . 1 . . . . . . . 1 . 1 . 2 . 2 1 3 6 4 2 1 23 . Communications Jammed 125 | . . . . . . . . . . . . . . 4 . . . 1 9 . . 14 2 15 . . . 12 . 12 8 28 19 . 1 . Distress Signals 116 | . . . . . . . . . . . . . . 4 . . . . 9 . . 14 . 12 . . . 12 . 12 8 28 16 . 1 . Times Spotted 838 | . 41 6 73 2 33 3 42 8 12 1 . 90 . 15 1 3 4 5 14 9 12 44 9 21 32 12 5 21 18 43 29 26 78 14 62 50 Peak Tracking Total 37 | . 5 2 8 2 11 3 6 7 4 3 . 37 1 4 1 1 1 3 3 5 5 8 4 6 6 5 1 12 4 5 10 7 7 5 6 5 Tactical Retreats 47 | . 1 . 3 . 16 . 6 . 1 . . . . . 1 . . 1 1 . . 1 . 2 2 . . 2 . 2 . 1 5 . 2 . Traps | -11 -10 -10 -9 -9 -9 -8 -8 -7 -7 -7 -7 -7 -6 -6 -6 -6 -6 -5 -5 -5 -5 -5 -4 -4 -4 -4 -4 -4 -3 -3 -2 -2 -2 -1 -1 -1 ------- Run | Jun Mat Min Mat Min Exi Min Mat Fac Low Low Zio Dee Pro Fac Low Low Dat Pro Fac Upp Upp War Pro Fac Ext Cet Arc Hub Res Tes Res Qua Sec Acc Com Ac0 Traps Triggered 24 | . 3 . 4 . . . . 1 . . . . . . . . . . . . . . . 1 1 . . . 1 3 . . 2 . 8 . Indirectly . | . . . . . . . . . . . . . . . . . . . . . . . . . . . . . . . . . . . . . Trap Hack Attempts 27 | . . . 27 . . . . . . . . . . . . . . . . . . . . . . . . . . . . . . . . . Triggered . | . . . . . . . . . . . . . . . . . . . . . . . . . . . . . . . . . . . . . Disarmed 12 | . . . . . . . . . . . . . . . . . . . . . . . . . . . . . . . . . . 6 6 . Reprogrammed 10 | . . . 4 . . . . . . . . . . 6 . . . . . . . . . . . . . . . . . . . . . . Reused 4 | . . . . . 4 . . . . . . . . . . . . . . . . . . . . . . . . . . . . . . . Traps Extracted 4 | . . . 4 . . . . . . . . . . . . . . . . . . . . . . . . . . . . . . . . . Installed 4 | . . . . . 4 . . . . . . . . . . . . . . . . . . . . . . . . . . . . . . . Triggered 12 | . . . . . . . . . . . . . . . . 1 . 1 . . . 10 . . . . . . . . . . . . . . Most Traps Carried 4 | . . . 4 4 4 . . . . . . . . . . . . . . . . . . . . . . . . . . . . . . . Machines | -11 -10 -10 -9 -9 -9 -8 -8 -7 -7 -7 -7 -7 -6 -6 -6 -6 -6 -5 -5 -5 -5 -5 -4 -4 -4 -4 -4 -4 -3 -3 -2 -2 -2 -1 -1 -1 ---------- Run | Jun Mat Min Mat Min Exi Min Mat Fac Low Low Zio Dee Pro Fac Low Low Dat Pro Fac Upp Upp War Pro Fac Ext Cet Arc Hub Res Tes Res Qua Sec Acc Com Ac0 Machines Disabled 84 | . . . 4 . 6 . 8 1 1 . . 3 . . . . 1 . . . . . . 4 1 2 2 2 2 12 3 6 16 . 5 5 Max in Single Turn 3 | . . . 1 . 2 . 1 1 1 . . 1 . . . . 1 . . . . . . 3 1 1 . . . 1 1 1 1 . 1 1 Garrison Access 6 | . . . . . . . . . . . . . . . . . . . . . . . . . . . . 1 . 1 3 . 1 . . . Network Hub 1 | . . . . . . . . . . . . . . . . . . . . . . . . . . . . 1 . . . . . . . . Machines Repaired . | . . . . . . . . . . . . . . . . . . . . . . . . . . . . . . . . . . . . . Machines Sabotaged . | . . . . . . . . . . . . . . . . . . . . . . . . . . . . . . . . . . . . . Overloaded Fab Kills . | . . . . . . . . . . . . . . . . . . . . . . . . . . . . . . . . . . . . . Hacking | -11 -10 -10 -9 -9 -9 -8 -8 -7 -7 -7 -7 -7 -6 -6 -6 -6 -6 -5 -5 -5 -5 -5 -4 -4 -4 -4 -4 -4 -3 -3 -2 -2 -2 -1 -1 -1 --------- Run | Jun Mat Min Mat Min Exi Min Mat Fac Low Low Zio Dee Pro Fac Low Low Dat Pro Fac Upp Upp War Pro Fac Ext Cet Arc Hub Res Tes Res Qua Sec Acc Com Ac0 Machines Accessed 116 | . 7 . 5 1 2 . 2 4 . . . . . 8 . 1 3 . 5 . 2 . . 4 13 1 . 5 10 9 2 7 13 7 5 . Terminals 79 | . 6 . 3 . . . 1 2 . . . . . 6 . . . . 3 . . . . 3 12 1 . 4 7 5 . 4 11 6 5 . Fabricators 4 | . . . . . . . . 1 . . . . . . . . . . . . . . . . . . . . 1 1 . . . 1 . . Repair Stations 8 | . . . 1 . . . 1 . . . . . . . . . . . 1 . . . . . . . . . 1 1 1 1 1 . . . Recycling Units 7 | . 1 . 1 . . . . 1 . . . . . 1 . . . . 1 . . . . 1 1 . . . . . . . . . . . Scanalyzers 4 | . . . . . . . . . . . . . . 1 . . . . . . . . . . . . . . . 1 . 2 . . . . Garrison Access 5 | . . . . . . . . . . . . . . . . . . . . . . . . . . . . 1 1 1 1 . 1 . . . Total Hacks 344 | . 20 . 15 1 2 . 4 12 . . . . . 32 . 1 24 . 12 . 4 . . 10 34 1 . 12 30 26 4 29 40 19 12 . Successful 206 | . 13 . 7 1 2 . 2 5 . . . . . 21 . 1 24 . 6 . 4 . . 5 16 . . 6 13 11 3 14 29 14 9 . Failed 138 | . 7 . 8 . . . 2 7 . . . . . 11 . . . . 6 . . . . 5 18 1 . 6 17 15 1 15 11 5 3 . Catastrophic 19 | . . . 1 . . . 1 . . . . . . 3 . . . . . . . . . . . . . 1 5 4 . 3 1 . . . Database Lockouts . | . . . . . . . . . . . . . . . . . . . . . . . . . . . . . . . . . . . . . Manual 78 | . 3 . 10 . 1 . 2 4 . . 1 . . 8 . . . . . . . 1 . 3 4 . . 5 4 2 . 7 13 5 5 . Terminals 235 | . 19 . 11 . . . 2 5 . . . . . 21 . . . . 8 . . . . 8 28 1 . 11 20 16 . 20 37 16 12 . Fabricators 18 | . . . . . . . . 5 . . . . . . . . . . . . . . . . . . . . 6 4 . . . 3 . . Repair Stations 18 | . . . 2 . . . 2 . . . . . . . . . . . 2 . . . . . . . . . 2 3 3 2 2 . . . Recycling Units 17 | . 1 . 2 . . . . 2 . . . . . 2 . . . . 2 . . . . 2 6 . . . . . . . . . . . Scanalyzers 17 | . . . . . . . . . . . . . . 9 . . . . . . . . . . . . . . . 1 . 7 . . . . Garrison Access 7 | . . . . . . . . . . . . . . . . . . . . . . . . . . . . 1 2 2 1 . 1 . . . Terminal Hacks 139 | . 12 . 3 1 2 . . 3 . . . . . 8 . 1 24 . 3 . 4 . . 4 12 . . 3 7 5 . 7 22 12 6 . Record 11 | . . . . . 1 . . . . . . . . . . . 6 . . . 3 . . . . . . . 1 . . . . . . . Part Schematic 15 | . 1 . 1 . . . . 1 . . . . . . . . 9 . . . . . . . . . . . . 1 . . 2 . . . Robot Schematic 6 | . . . . . . . . . . . . . . . . . 6 . . . . . . . . . . . . . . . . . . . Robot Analysis 7 | . 1 . . . . . . . . . . . . 1 . . . . . . . . . . . . . . 1 1 . . 1 1 1 . Prototype ID Bank 8 | . . . . . . . . . . . . . . . . . 3 . 1 . . . . 1 1 . . . . . . . 2 . . . Open Door 16 | . . . . 1 . . . . . . . . . . . 1 . . . . 1 . . . 5 . . . . . . . 4 3 1 . Level Access Points 2 | . . . . . . . . . . . . . . . . . . . . . . . . . . . . 1 1 . . . . . . . Branch Access Points 4 | . 1 . . . . . . 1 . . . . . 1 . . . . . . . . . 1 . . . . . . . . . . . . Machine Index 1 | . . . . . . . . . . . . . . . . . . . . . . . . . . . . . . . . . 1 . . . Terminal Index 2 | . . . . . . . . . . . . . . . . . . . . . . . . 1 . . . 1 . . . . . . . . Alert Level 8 | . . . . . . . . . . . . . . . . . . . . . . . . . 1 . . . 1 1 . 1 3 1 . . Unreport Threat 13 | . 1 . . . . . . . . . . . . 1 . . . . . . . . . . 1 . . . 1 1 . 4 . 4 . . Locate Traps 8 | . 1 . . . . . . . . . . . . 2 . . . . . . . . . . 2 . . . 1 . . . . 1 1 . Disarm Traps 2 | . . . . . . . . . . . . . . . . . . . . . . . . . . . . . . . . . . 1 1 . Reprogram Traps 1 | . . . . . . . . . . . . . . 1 . . . . . . . . . . . . . . . . . . . . . . Maintenance Status 1 | . . . . . . . . . . . . . . . . . . . . . . . . . . . . . . . . . . . 1 . Security Status 1 | . . . . . . . . . . . . . . . . . . . . . . . . . . . . . . . . . . 1 . . Patrol Status 3 | . . . . . . . . . . . . . . . . . . . 1 . . . . . . . . . . . . . 2 . . . Recall Extermination 1 | . . . . . . . . 1 . . . . . . . . . . . . . . . . . . . . . . . . . . . . Recall Reinforcements 1 | . . . . . . . . . . . . . . . . . . . . . . . . . . . . . . . . . 1 . . . Hauler Manifests 6 | . 1 . . . . . . . . . . . . 1 . . . . . . . . . 1 . . . . 1 . . 1 1 . . . Registered Prototypes 2 | . . . . . . . . . . . . . . . . . . . . . . . . . 1 . . . . . . . 1 . . . Zone Layout 18 | . 6 . 2 . . . . . . . . . . 1 . . . . 1 . . . . . 1 . . 1 . 1 . 1 4 . . . Derelict Proto ID Bank 1 | . . . . . 1 . . . . . . . . . . . . . . . . . . . . . . . . . . . . . . . Disengage Seal 1 | . . . . . . . . . . . . . . . . . . . . . . . . . . . . . . . . . . . 1 . Fabricator Hacks 6 | . . . . . . . . 1 . . . . . . . . . . . . . . . . . . . . 2 2 . . . 1 . . Network Status 4 | . . . . . . . . 1 . . . . . . . . . . . . . . . . . . . . 1 1 . . . 1 . . Load Schematic 1 | . . . . . . . . . . . . . . . . . . . . . . . . . . . . . . 1 . . . . . . Build 1 | . . . . . . . . . . . . . . . . . . . . . . . . . . . . . 1 . . . . . . . Repair Station Hacks 14 | . . . 2 . . . 2 . . . . . . . . . . . 2 . . . . . . . . . 2 2 2 . 2 . . . Scan Component 7 | . . . 1 . . . 1 . . . . . . . . . . . 1 . . . . . . . . . 1 1 1 . 1 . . . Repair 7 | . . . 1 . . . 1 . . . . . . . . . . . 1 . . . . . . . . . 1 1 1 . 1 . . . Recycling Unit Hacks 6 | . . . . . . . . 1 . . . . . 1 . . . . 1 . . . . 1 2 . . . . . . . . . . . Retrieve Components 6 | . . . . . . . . 1 . . . . . 1 . . . . 1 . . . . 1 2 . . . . . . . . . . . Scanalyzer 16 | . . . . . . . . . . . . . . 9 . . . . . . . . . . . . . . . . . 7 . . . . Insert Component 9 | . . . . . . . . . . . . . . 5 . . . . . . . . . . . . . . . . . 4 . . . . Analyze 7 | . . . . . . . . . . . . . . 4 . . . . . . . . . . . . . . . . . 3 . . . . Garrison Access Hacks 3 | . . . . . . . . . . . . . . . . . . . . . . . . . . . . 1 . . 1 . 1 . . . Seal Access 3 | . . . . . . . . . . . . . . . . . . . . . . . . . . . . 1 . . 1 . 1 . . . Unauthorized Hacks 22 | . 1 . 2 . . . . . . . . . . 3 . . . . . . . . . . 2 . . 2 2 2 . . 4 1 3 . Terminals 12 | . . . . . . . . . . . . . . 2 . . . . . . . . . . . . . 2 . . . . 4 1 3 . Botnet 7 | . . . . . . . . . . . . . . 1 . . . . . . . . . . . . . 1 . . . . 2 1 2 . Disrupt 1 | . . . . . . . . . . . . . . . . . . . . . . . . . . . . 1 . . . . . . . . Operators 4 | . . . . . . . . . . . . . . 1 . . . . . . . . . . . . . . . . . . 2 . 1 . Fabricators 3 | . . . . . . . . . . . . . . . . . . . . . . . . . . . . . 2 1 . . . . . . Prioritize 1 | . . . . . . . . . . . . . . . . . . . . . . . . . . . . . 1 . . . . . . . Haulers 2 | . . . . . . . . . . . . . . . . . . . . . . . . . . . . . 1 1 . . . . . . Repair Stations . | . . . . . . . . . . . . . . . . . . . . . . . . . . . . . . . . . . . . . Recycling Units 6 | . 1 . 2 . . . . . . . . . . 1 . . . . . . . . . . 2 . . . . . . . . . . . Reject 2 | . . . 1 . . . . . . . . . . . . . . . . . . . . . 1 . . . . . . . . . . . Recyclers 3 | . . . 1 . . . . . . . . . . 1 . . . . . . . . . . 1 . . . . . . . . . . . Tunnel 1 | . 1 . . . . . . . . . . . . . . . . . . . . . . . . . . . . . . . . . . . Scanalyzers 1 | . . . . . . . . . . . . . . . . . . . . . . . . . . . . . . 1 . . . . . . Researchers 1 | . . . . . . . . . . . . . . . . . . . . . . . . . . . . . . 1 . . . . . . Garrison Access . | . . . . . . . . . . . . . . . . . . . . . . . . . . . . . . . . . . . . . Data Cores Recovered 2 | . . . . . . . . . . . . . . 1 . . . . . . . . . . . . . . . . . . . . 1 . Used . | . . . . . . . . . . . . . . . . . . . . . . . . . . . . . . . . . . . . . Hacking Detections 84 | . 5 . 4 . . . 2 3 . . . . . 8 . . . . 5 . . . . 4 10 1 . 4 10 7 . 6 7 5 3 . Full Trace Events 6 | . . . 2 . . . 1 . . . . . . . . . . . . . . . . . 2 . . . . . . 1 . . . . Feedback Events 1 | . . . . . . . . . . . . . . . . . . . . . . . . . . . . . . . . 1 . . . . Corruption 1 | . . . . . . . . . . . . . . . . . . . . . . . . . . . . . . . . 1 . . . . Feedback Blocked . | . . . . . . . . . . . . . . . . . . . . . . . . . . . . . . . . . . . . . Robot Schematics Acquired 11 | . . . . . . . . . . . 3 . . . . . 6 . . . . . . . . . . . . 2 . . . . . . Robots Built . | . . . . . . . . . . . . . . . . . . . . . . . . . . . . . . . . . . . . . Authchips . | . . . . . . . . . . . . . . . . . . . . . . . . . . . . . . . . . . . . . Time . | . . . . . . . . . . . . . . . . . . . . . . . . . . . . . . . . . . . . . Total Robot Build Rating . | . . . . . . . . . . . . . . . . . . . . . . . . . . . . . . . . . . . . . Part Schematics Acquired 43 | . 1 . 1 . . . . 1 . . 16 . . 3 . . 9 . . . . . . . . . . . . 7 . 3 2 . . . Parts Built 1 | . . . . . . . . . . . . . . . . . . . . . . . . . . . . . 1 . . . . . . . Authchips . | . . . . . . . . . . . . . . . . . . . . . . . . . . . . . . . . . . . . . Time 69 | . . . . . . . . . . . . . . . . . . . . . . . . . . . . . 69 . . . . . . . Total Part Build Rating 9 | . . . . . . . . . . . . . . . . . . . . . . . . . . . . . 9 . . . . . . . Parts Repaired 7 | . . . 1 . . . 1 . . . . . . . . . . . 1 . . . . . . . . . 1 1 1 . 1 . . . Time 359 | . . . 32 . . . 38 . . . . . . . . . . . 62 . . . . . . . . . 54 31 34 . 108 . . . Parts Recycled . | . . . . . . . . . . . . . . . . . . . . . . . . . . . . . . . . . . . . . Recycled Matter . | . . . . . . . . . . . . . . . . . . . . . . . . . . . . . . . . . . . . . Retrieved Matter . | . . . . . . . . . . . . . . . . . . . . . . . . . . . . . . . . . . . . . Retrieved Components 5 | . . . . . . . . . . . . . . 2 . . . . 3 . . . . . . . . . . . . . . . . . Parts Scanalyzed 6 | . . . . . . . . . . . . . . 3 . . . . . . . . . . . . . . . . . 3 . . . . Part Schematics Acquired 6 | . . . . . . . . . . . . . . 3 . . . . . . . . . . . . . . . . . 3 . . . . Parts Damaged 1 | . . . . . . . . . . . . . . 1 . . . . . . . . . . . . . . . . . . . . . . Bothacking | -11 -10 -10 -9 -9 -9 -8 -8 -7 -7 -7 -7 -7 -6 -6 -6 -6 -6 -5 -5 -5 -5 -5 -4 -4 -4 -4 -4 -4 -3 -3 -2 -2 -2 -1 -1 -1 ------------ Run | Jun Mat Min Mat Min Exi Min Mat Fac Low Low Zio Dee Pro Fac Low Low Dat Pro Fac Upp Upp War Pro Fac Ext Cet Arc Hub Res Tes Res Qua Sec Acc Com Ac0 Used RIF Installer . | . . . . . . . . . . . . . . . . . . . . . . . . . . . . . . . . . . . . . Robots Hacked 3 | . . . . . . . . . . . . . . . . . . . . . . . . . . . 2 . 1 . . . . . . . Non-combat 2 | . . . . . . . . . . . . . . . . . . . . . . . . . . . 2 . . . . . . . . . Combat 1 | . . . . . . . . . . . . . . . . . . . . . . . . . . . . . 1 . . . . . . . Robot Hacks Applied 3 | . . . . . . . . . . . . . . . . . . . . . . . . . . . 2 . 1 . . . . . . . parse_system 1 | . . . . . . . . . . . . . . . . . . . . . . . . . . . . . 1 . . . . . . . check_alert 2 | . . . . . . . . . . . . . . . . . . . . . . . . . . . 2 . . . . . . . . . Manual 1 | . . . . . . . . . . . . . . . . . . . . . . . . . . . . . 1 . . . . . . . Relay Couplers Released 8 | . . . . . . . . . . . . . . . . . . . . . . . . . . . . . . 2 6 . . . . . Machine Destruction 8 | . . . . . . . . . . . . . . . . . . . . . . . . . . . . . . 2 6 . . . . . Fabnet Peak Effective % . | . . . . . . . . . . . . . . . . . . . . . . . . . . . . . . . . . . . . . Robots Rewired 17 | . . . . . . . . . . . . . . . . . . . . . . . . . 17 . . . . . . . . . . . Allies Hacked . | . . . . . . . . . . . . . . . . . . . . . . . . . . . . . . . . . . . . . Hacks Repelled . | . . . . . . . . . . . . . . . . . . . . . . . . . . . . . . . . . . . . . Allies | -11 -10 -10 -9 -9 -9 -8 -8 -7 -7 -7 -7 -7 -6 -6 -6 -6 -6 -5 -5 -5 -5 -5 -4 -4 -4 -4 -4 -4 -3 -3 -2 -2 -2 -1 -1 -1 -------- Run | Jun Mat Min Mat Min Exi Min Mat Fac Low Low Zio Dee Pro Fac Low Low Dat Pro Fac Upp Upp War Pro Fac Ext Cet Arc Hub Res Tes Res Qua Sec Acc Com Ac0 Total Allies 30 | . . . . 1 . . . . . . 5 . . . . . . . . . . . . . 23 . . . 1 . . . . . . . Largest Group 14 | . . . . 1 . . . . . . 5 5 . . . . . . . . . . . . 14 14 4 3 1 . . . . . . . Highest-Rated Group 678 | . . . . 31 . . . . . . 257 257 . . . . . . . . . . . . 678 678 180 134 116 . . . . . . . Highest-Rated Ally 159 | . . . . 31 . . . . . . 96 96 . . . . . . . . . . . . 159 159 46 46 116 . . . . . . . Total Orders 8 | . . . . . . . . . . . . . . . . . . . . . . 1 . . . 3 2 2 . . . . . . . . STAY 5 | . . . . . . . . . . . . . . . . . . . . . . . . . . 3 1 1 . . . . . . . . FOLLOW 1 | . . . . . . . . . . . . . . . . . . . . . . . . . . . 1 . . . . . . . . . EXPLORE 1 | . . . . . . . . . . . . . . . . . . . . . . . . . . . . 1 . . . . . . . . RETURN 1 | . . . . . . . . . . . . . . . . . . . . . . 1 . . . . . . . . . . . . . . Ally Attacks 256 | . . . . . . . . . 6 . . 22 . . . . . . . . . 4 . . 89 98 14 19 4 . . . . . . . Total Damage 6496 | . . . . . . . . . 169 . . 278 . . . . . . . . . . . . 2658 2703 230 247 211 . . . . . . . Kills 31 | . . . . . . . . . . . . 1 . . . . . . . . . . . . 15 11 2 2 . . . . . . . . Allies Corrupted 2 | . . . . . . . . . . . . . . . . . . . . . . . . . . . . 2 . . . . . . . . Allies Melted 1 | . . . . . . . . . . . . . . . . . . . . . . . . . 1 . . . . . . . . . . . Turrets Deployed 1 | . . . . . . . . . 1 . . . . . . . . . . . . . . . . . . . . . . . . . . . Intel | -11 -10 -10 -9 -9 -9 -8 -8 -7 -7 -7 -7 -7 -6 -6 -6 -6 -6 -5 -5 -5 -5 -5 -4 -4 -4 -4 -4 -4 -3 -3 -2 -2 -2 -1 -1 -1 ------- Run | Jun Mat Min Mat Min Exi Min Mat Fac Low Low Zio Dee Pro Fac Low Low Dat Pro Fac Upp Upp War Pro Fac Ext Cet Arc Hub Res Tes Res Qua Sec Acc Com Ac0 Robot Analysis Total 7 | . 1 . . . . . . . . . . . . 1 . . . . . . . . . . . . . . 1 1 . . 1 1 1 . Derelict Logs Recovered 17 | . . 2 . 2 . . . . 3 1 1 . 3 . . . . 2 . 1 . . 2 . . . . . . . . . . . . . Drone Launches 17 | . . . . . . . . . . . . . . . . . . . . . . 5 . . . . . 12 . . . . . . . . Drone Recoveries 1 | . . . . . . . . . . . . . . . . . . . . . . 1 . . . . . . . . . . . . . . Decoded 0b10 Intel 7 | . . . . . . . . . . . . . . . . . . . . . . . . . . . . . . 7 . . . . . . Items 7 | . . . . . . . . . . . . . . . . . . . . . . . . . . . . . . 7 . . . . . . Exploration | -11 -10 -10 -9 -9 -9 -8 -8 -7 -7 -7 -7 -7 -6 -6 -6 -6 -6 -5 -5 -5 -5 -5 -4 -4 -4 -4 -4 -4 -3 -3 -2 -2 -2 -1 -1 -1 ------------- Run | Jun Mat Min Mat Min Exi Min Mat Fac Low Low Zio Dee Pro Fac Low Low Dat Pro Fac Upp Upp War Pro Fac Ext Cet Arc Hub Res Tes Res Qua Sec Acc Com Ac0 Turns Passed 50267 | 4 1467 636 3079 1118 1973 237 1269 547 771 454 1537 3213 992 740 898 546 1172 971 1201 1086 819 1378 737 699 1238 313 1490 423 1490 2250 1106 1268 2395 621 9382 747 Spaces Moved 24208 | 1 718 313 1223 548 841 93 371 311 493 304 987 1613 354 294 323 247 302 507 491 508 391 640 365 302 692 145 110 286 793 1116 815 535 1250 428 5147 351 Core 64 | . . . . . . . . . . . . . . . . . . . . . . . . . . . 57 . . . . . . . . 7 Treads 760 | 1 317 . 77 18 . . 299 47 . . . . . . . . . . . . . . . . . . . . . . . . . . . 1 Legs 16692 | . . . . . . . . . . . . 365 354 294 323 247 302 507 491 508 391 640 365 302 692 145 53 286 793 1116 815 535 1250 428 5147 343 Wheels 6692 | . 401 313 1146 530 841 93 72 264 493 304 987 1248 . . . . . . . . . . . . . . . . . . . . . . . . Hover . | . . . . . . . . . . . . . . . . . . . . . . . . . . . . . . . . . . . . . Flight . | . . . . . . . . . . . . . . . . . . . . . . . . . . . . . . . . . . . . . Fastest Speed 50 | 160 160 175 175 190 175 230 135 145 145 145 145 145 210 210 210 210 185 183 185 185 185 180 180 126 126 121 118 118 108 108 111 116 105 105 100 50 Average Speed 169 | 160 168 175 197 194 208 230 219 158 145 145 145 163 210 210 210 210 202 184 198 185 185 183 180 166 131 143 1327 118 158 154 116 168 141 105 152 122 Slowest Speed 2450 | 160 175 175 320 320 230 230 236 236 145 145 145 210 210 210 210 210 260 185 210 185 185 185 180 182 182 184 2450 118 181 180 194 194 198 105 190 215 Overloaded Moves . | . . . . . . . . . . . . . . . . . . . . . . . . . . . . . . . . . . . . . Propulsion Burnouts . | . . . . . . . . . . . . . . . . . . . . . . . . . . . . . . . . . . . . . Robots Hopped . | . . . . . . . . . . . . . . . . . . . . . . . . . . . . . . . . . . . . . Cave-ins Triggered . | . . . . . . . . . . . . . . . . . . . . . . . . . . . . . . . . . . . . . Teleports 7 | . . . . . . . . . . . . . . . . . . . . . . . . . . . . . . . . 1 4 . 1 1 Exploration Rate (%) 55 | 2 94 81 79 91 89 34 45 9 72 46 84 82 49 11 52 41 80 63 14 71 71 82 58 12 81 58 71 41 25 91 26 58 74 16 89 25 Regions Visited 36 Branch Regions 26 Pre-discovered Areas 6 | . 1 1 . 1 1 . . . . . . . . . . . 1 . . 1 . . . . . . . . . . . . . . . . Known Exits Taken 20 | . 1 . . . . . . 1 1 1 1 . 1 1 . . . 1 1 1 1 1 1 1 . . . 1 . 1 1 1 1 1 . . Unknown Exits Taken 16 | 1 . 1 1 1 1 1 1 . . . . 1 . . 1 1 1 . . . . . . . 1 1 1 . 1 . . . . . 1 . Scrap Searched 26 | . . 1 . 1 . 1 . . 3 2 2 . 3 . 3 3 . 3 . 2 . . 2 . . . . . . . . . . . . . Spaces Dug 374 | . 1 1 . 1 11 5 1 7 . 3 2 1 5 9 10 10 12 5 14 19 . 14 24 10 4 . . 4 18 40 7 8 17 13 15 83 Terrain Destroyed 2147 | . 1 1 89 4 22 11 125 23 41 3 2 77 25 35 13 46 12 12 42 47 138 51 81 59 50 1 . 9 26 87 90 77 45 19 96 687 Melee 62 | . . . . . 4 . 1 7 . 3 2 1 . . . . 12 . . . . 14 . . 2 . . . . 8 2 . 2 . 4 . Projectile 387 | . 1 1 1 4 . 2 22 . . . . . 2 16 13 3 . 9 32 20 6 . 7 29 13 1 . 9 26 38 20 15 24 19 32 22 AOE 1695 | . . . 88 . 17 9 100 16 41 . . 76 23 19 . 43 . 3 10 27 132 37 74 30 35 . . . . 41 68 62 19 . 60 665 Terrain Rammed . | . . . . . . . . . . . . . . . . . . . . . . . . . . . . . . . . . . . . . Walls Destroyed . | . . . . . . . . . . . . . . . . . . . . . . . . . . . . . . . . . . . . . Machines Disabled . | . . . . . . . . . . . . . . . . . . . . . . . . . . . . . . . . . . . . . Actions | -11 -10 -10 -9 -9 -9 -8 -8 -7 -7 -7 -7 -7 -6 -6 -6 -6 -6 -5 -5 -5 -5 -5 -4 -4 -4 -4 -4 -4 -3 -3 -2 -2 -2 -1 -1 -1 --------- Run | Jun Mat Min Mat Min Exi Min Mat Fac Low Low Zio Dee Pro Fac Low Low Dat Pro Fac Upp Upp War Pro Fac Ext Cet Arc Hub Res Tes Res Qua Sec Acc Com Ac0 Total 31872 | 4 861 354 1668 577 997 106 631 344 533 312 1071 2153 600 372 530 266 803 530 637 609 452 823 416 432 994 253 140 369 1019 1580 962 898 1824 598 6539 615 Wait 3728 | . 27 3 193 . 32 . 67 . 6 . 40 402 241 25 185 3 391 9 72 55 10 112 15 58 98 62 12 37 76 166 21 208 178 76 761 87 Move 24172 | . 717 312 1222 547 840 92 370 310 492 303 986 1612 353 293 322 246 301 506 490 507 390 639 364 301 691 144 109 285 792 1116 814 534 1249 427 5146 350 Hop . | . . . . . . . . . . . . . . . . . . . . . . . . . . . . . . . . . . . . . Pick Up 331 | . 23 2 23 5 16 . 10 . 5 2 7 37 . 5 1 3 11 . 3 2 7 11 1 4 5 6 1 4 14 22 10 14 25 6 35 11 Fast Attach 236 | . 1 . 17 3 3 2 5 5 1 . 1 6 2 . . . 3 . 3 . . 9 1 . 2 2 . 1 10 10 6 7 30 4 94 8 Attach 148 | 2 4 3 5 2 3 . 8 . 1 . . 4 . 3 1 1 2 . 2 1 4 1 2 3 4 1 1 4 5 10 5 10 17 1 31 7 Detach 57 | . . . 3 . 1 . . . . . . 2 . . 2 1 . . . . . 4 . . 1 . . 2 2 4 . 2 3 . 29 1 Swap 361 | . 9 4 28 1 9 2 18 3 9 2 4 17 . 3 . 1 5 . 6 11 9 5 13 7 9 2 1 5 18 60 15 13 41 8 23 . Drop 463 | 2 8 2 26 6 17 1 9 3 7 1 9 30 1 3 3 3 22 . 4 4 4 17 1 4 2 7 1 5 19 31 14 17 31 9 125 15 Fire 1891 | . 72 28 124 13 30 9 143 5 6 1 . 33 3 40 16 8 . 15 57 29 21 5 19 55 88 28 13 25 79 129 75 93 232 67 195 135 Melee 326 | . . . . . 42 . 1 10 6 3 24 10 . . . . 68 . . . 7 20 . . 11 1 2 1 4 32 2 . 13 . 68 1 Ram . | . . . . . . . . . . . . . . . . . . . . . . . . . . . . . . . . . . . . . Kick . | . . . . . . . . . . . . . . . . . . . . . . . . . . . . . . . . . . . . . Crush . | . . . . . . . . . . . . . . . . . . . . . . . . . . . . . . . . . . . . . Escape Stasis 52 | . . . . . . . . 8 . . . . . . . . . . . . . . . . 9 . . . . . . . 5 . 30 . Rewire 76 | . . . . . . . . . . . . . . . . . . . . . . . . . 74 . . . . . . . . . 2 . Trap 31 | . . . 27 . 4 . . . . . . . . . . . . . . . . . . . . . . . . . . . . . . . Miscellaneous . | . . . . . . . . . . . . . . . . . . . . . . . . . . . . . . . . . . . . . Route ------- -11/Junkyard -10/Materials (discovered 5 exits: *Mat x3 / *Min x2) -10/Mines (discovered 2 exits: *Mat x2) -9/Materials (discovered 5 exits: *Mat x2 / *Min x2 / [*Sto]) -9/Mines (discovered 2 exits: *Mat / *Exi) -9/Exiles -8/Mines -8/Materials (discovered 2 exits: *Fac x2) -7/Factory (discovered 2 exits: *Low x2) -7/Lower Caves -7/Lower Caves -7/Zion (discovered 2 exits: *Dee / [*Pro]) -7/Deep Caves -6/Proximity Caves -6/Factory (discovered 3 exits: Fac / *Low x2) -6/Lower Caves -6/Lower Caves -6/Data Miner -5/Proximity Caves -5/Factory -5/Upper Caves -5/Upper Caves (discovered 2 exits: *Fac / *War) -5/Warlord -4/Proximity Caves -4/Factory (discovered 5 exits: Upp x2 / *Ext x2 / Arm) -4/Extension (discovered 2 exits: *Res / *Cet) -4/Cetus (discovered 2 exits: *Res / [*Arc]) -4/Archives -4/Hub_04(d) (discovered 4 exits: *Res x4) -3/Research (discovered 4 exits: Res x3 / *Tes) -3/Testing -2/Research (discovered 2 exits: *Acc / *Qua) -2/Quarantine -2/Section 7 -1/Access -1/Command (discovered 2 exits: [*Sur] / [*Ac0]) -1/Access_0 Near Former Tau Ceti IV History --------- Turn | Location | Event 5 | -11/Junkyard | Discovered new exit (range 0) 5 | -11/Junkyard | Entered Materials 140 | -10/Materials | Identified exit to Mines 308 | -10/Materials | Build established: Mutant 671 | -10/Materials | Discovered new exit (range 3) 961 | -10/Materials | Discovered new exit (range 15) 1043 | -10/Materials | Discovered new exit (range 16) 1386 | -10/Materials | Lost 3 parts (2n1w) 1472 | -10/Materials | Entered Mines 1537 | -10/Mines | Learned location of Recycling (-9) 1689 | -10/Mines | Core integrity fell below 50% 1729 | -10/Mines | Discovered new exit (range 7) 1781 | -10/Mines | Assembled infested the area 1786 | -10/Mines | Assisted by a Guerilla fighting off Assembled 1805 | -10/Mines | Discovered new exit (range 9) 1869 | -10/Mines | Lost 3 parts (1p1u1w) 2038 | -10/Mines | Received a Rocket Launcher from a helpful Derelict 2108 | -10/Mines | Entered Materials 2108 | -9/Materials | Evolved 2 slots: Utility x2 2570 | -9/Materials | Discovered new exit (range 12) 2810 | -9/Materials | Discovered new exit (range 15) 3033 | -9/Materials | Discovered new exit (range 15) 3149 | -9/Materials | Discovered new exit (range 14) 3685 | -9/Materials | Destroyed 10 combat bots 3884 | -9/Materials | Discovered new exit (range 16) 4108 | -9/Materials | First assault squad dispatched 4649 | -9/Materials | Repaired Imp. Treads 5187 | -9/Materials | Entered Mines 5296 | -9/Mines | Found the Drone Emporium 5309 | -9/Mines | Found Prototype Device 5309 | -9/Mines | Identified Bomb Drone Bay 5500 | -9/Mines | Received a Mining Laser from a helpful Derelict 5662 | -9/Mines | Discovered new exit (range 6) 6298 | -9/Mines | Deemed a non-threat by the Exiles lab entrance 6298 | -9/Mines | Discovered new exit (range 5) 6305 | -9/Mines | Entered Exiles 6351 | -9/Exiles | Met 8R-AWN 6439 | -9/Exiles | Met EX-HEX 6542 | -9/Exiles | Met EX-DEC 6580 | -9/Exiles | Learned location of Zion (-7) 6660 | -9/Exiles | Build established: Trapper-Mutant 6785 | -9/Exiles | Met EX-BIN 6808 | -9/Exiles | Aligned with FarCom system 6810 | -9/Exiles | Given EX-Vault access code 6856 | -9/Exiles | Opened EX-Vault 6868 | -9/Exiles | Found 0b10 Alert Chip 6879 | -9/Exiles | Found Longsword +1 6923 | -9/Exiles | Warned to stay clear of 0b10 Research branches 7011 | -9/Exiles | Attacked by the Exiles 7151 | -9/Exiles | Destroyed 8R-AWN 7166 | -9/Exiles | Found Prototype Ballistic Gun 7184 | -9/Exiles | Identified 8R-AWN's Boregun 7298 | -9/Exiles | Build established: Mutant 7443 | -9/Exiles | Destroyed EX-HEX 7457 | -9/Exiles | Destroyed EX-BIN 7490 | -9/Exiles | Found Prototype Device 7490 | -9/Exiles | Identified System Purifier 7530 | -9/Exiles | Destroyed EX-DEC 7542 | -9/Exiles | Found Deploy-a-Sentry 7778 | -9/Exiles | Build established: Scavenger-Mutant 8248 | -9/Exiles | Discovered new exit (range 14) 8278 | -9/Exiles | Stole three prototypes: Longsword +1, 0b10 Alert Chip, Deploy-a-Sentry 8278 | -9/Exiles | Entered Mines 8503 | -8/Mines | Discovered new exit (range 6) 8515 | -8/Mines | Entered Materials 8515 | -8/Materials | Evolved 2 slots: Propulsion x2 8994 | -8/Materials | Build established: Mutant 9007 | -8/Materials | Discovered new exit (range 10) 9312 | -8/Materials | Repaired Adv. Treads 9409 | -8/Materials | Discovered new exit (range 5) 9555 | -8/Materials | Build established: Scavenger-Mutant 9784 | -8/Materials | Entered Factory 9784 | -7/Factory | Evolved 2 slots: Utility x2 10251 | -7/Factory | Identified exit to Lower Caves 10331 | -7/Factory | Entered Lower Caves 10331 | -7/Lower Caves | Spotted 2H-O1E(f) 10331 | -7/Lower Caves | Spotted 9C-I97(f) 10332 | -7/Lower Caves | Encountered a Master Thief 10332 | -7/Lower Caves | Encountered a Master Thief 10333 | -7/Lower Caves | Spotted CS-J2X(f) 10334 | -7/Lower Caves | Encountered a Master Thief 10335 | -7/Lower Caves | DAS Turret deployed 10338 | -7/Lower Caves | 8R-AWN's Boregun stolen by Master Thief 10340 | -7/Lower Caves | Cmb. Antigrav System stolen by Master Thief 10641 | -7/Lower Caves | Learned Factory terminal intel 10659 | -7/Lower Caves | Learned location of 1 exit from Factory 10681 | -7/Lower Caves | Attacked by a delusional Derelict stockpiling parts 10759 | -7/Lower Caves | Encountered a Warlord checkpoint 10815 | -7/Lower Caves | Spotted B-75 Beast 11082 | -7/Lower Caves | Discovered new exit (range 14) 11098 | -7/Lower Caves | Learned Factory security intel 11101 | -7/Lower Caves | Identified exit to Lower Caves 11102 | -7/Lower Caves | Entered another Lower Caves area 11121 | -7/Lower Caves | Learned Factory emergency access door positions 11366 | -7/Lower Caves | Encountered a Warlord checkpoint 11551 | -7/Lower Caves | Discovered new exit (range 5) 11555 | -7/Lower Caves | Identified exit to Zion 11556 | -7/Lower Caves | Entered Zion 11785 | -7/Zion | Discovered new exit (range 16) 11917 | -7/Zion | Learned location of 1 exit from Proximity Caves 12012 | -7/Zion | Gained Derelict followers 12095 | -7/Zion | Found Prototype Special Weapon 12098 | -7/Zion | Found Prototype Special Weapon 12101 | -7/Zion | Found Prototype Special Weapon 12104 | -7/Zion | Found Prototype Special Weapon 12346 | -7/Zion | Identified RU-N14's Throwing Claymores (x4) 12374 | -7/Zion | Given A8's code to call for help 13018 | -7/Zion | Discovered new exit (range 5) 13019 | -7/Zion | Saw the warning signs outside the Deep Caves entrance 13022 | -7/Zion | Identified exit to Deep Caves 13047 | -7/Zion | Enhanced Grunt warped into view, answering call for help 13050 | -7/Zion | Enhanced Grunt warped into view, answering call for help 13093 | -7/Zion | Entered Deep Caves 13093 | -7/Deep Caves | Accompanied by 5 allies 13432 | -7/Deep Caves | Attacked by Z-Imprinter 13442 | -7/Deep Caves | Destroyed Z-Imprinter 13547 | -7/Deep Caves | Z-Facility disabled 13812 | -7/Deep Caves | Discovered new exit (range 7) 14173 | -7/Deep Caves | Found Prototype Protection 14173 | -7/Deep Caves | Identified Zio. Heavy Carapace 14236 | -7/Deep Caves | Found Zio. Heavy Carapace 14438 | -7/Deep Caves | Spotted as-47338 14446 | -7/Deep Caves | Destroyed as-47338 14487 | -7/Deep Caves | Build established: Mutant 14513 | -7/Deep Caves | Spotted as-50089 14546 | -7/Deep Caves | Destroyed as-50089 14597 | -7/Deep Caves | Triggered Deep Caves wall 14597 | -7/Deep Caves | Spotted AS-72664 14597 | -7/Deep Caves | Spotted AS-33193 14609 | -7/Deep Caves | Destroyed AS-72664 14621 | -7/Deep Caves | Destroyed AS-33193 14645 | -7/Deep Caves | Destroyed 38 combat bots 14645 | -7/Deep Caves | Found Potential Leg 14790 | -7/Deep Caves | Build established: Scavenger-Mutant 15140 | -7/Deep Caves | Exposed GOLEM chamber 15143 | -7/Deep Caves | Found GOLEM Unit 15611 | -7/Deep Caves | Found GOLEM Unit 15893 | -7/Deep Caves | Build established: Mutant 16306 | -7/Deep Caves | Entered Proximity Caves 16307 | -6/Proximity Caves | Identified exit to Factory 16323 | -6/Proximity Caves | Learned Factory emergency access door positions 16699 | -6/Proximity Caves | Received a Behemoth hack from an annoying Tinkerer 17204 | -6/Proximity Caves | Learned 8 Factory zone layouts 17209 | -6/Proximity Caves | Learned Factory stockpile data 17298 | -6/Proximity Caves | Entered Factory 17298 | -6/Factory | Evolved 2 slots: Power x1, Utility x1 17299 | -6/Factory | Identified exit to Factory 17304 | -6/Factory | Loaded intel: 26 terminal locations 17552 | -6/Factory | Spotted B-75 Beast 17568 | -6/Factory | Destroyed B-75 Beast 17597 | -6/Factory | Build established: Scavenger-Mutant 17654 | -6/Factory | Identified exit to Lower Caves 18038 | -6/Factory | Entered Lower Caves 18330 | -6/Lower Caves | Build established: Golem 18368 | -6/Lower Caves | Spotted B-75 Beast 18760 | -6/Lower Caves | Discovered new exit (range 15) 18936 | -6/Lower Caves | Entered another Lower Caves area 18936 | -6/Lower Caves | Spotted M5-3ND(f) 18937 | -6/Lower Caves | Encountered a Master Thief 18937 | -6/Lower Caves | Potential Leg stolen by Master Thief 19410 | -6/Lower Caves | Discovered new exit (range 4) 19482 | -6/Lower Caves | Entered Data Miner 19482 | -6/Data Miner | Discovered new exit (range 6) 19522 | -6/Data Miner | Met Data Miner 19564 | -6/Data Miner | Learned location of Section 7 (-2) 19564 | -6/Data Miner | Acquired the access code to Warlord's prototype stash 19596 | -6/Data Miner | Received God Mode back door access code from Data Miner 19637 | -6/Data Miner | Destroyed Data Miner 19639 | -6/Data Miner | Data Conduit disabled 20075 | -6/Data Miner | Build established: Scavenger-Golem 20140 | -6/Data Miner | Found Prototype Hackware 20143 | -6/Data Miner | Found Prototype Hackware 20200 | -6/Data Miner | Found Prototype Hackware 20654 | -6/Data Miner | Entered Proximity Caves 21053 | -5/Proximity Caves | Learned 4 Factory zone layouts 21625 | -5/Proximity Caves | Entered Factory 21625 | -5/Factory | Evolved 2 slots: Utility x2 21778 | -5/Factory | Spotted B-75 Beast 22677 | -5/Factory | Repaired Imp. Force Field 22764 | -5/Factory | Discovered new exit (range 7) 22825 | -5/Factory | Identified exit to Upper Caves 22826 | -5/Factory | Entered Upper Caves 22951 | -5/Upper Caves | Attracted the attention of an 0b10 outpost 23238 | -5/Upper Caves | Learned location of Warlord (-5) 23367 | -5/Upper Caves | Attracted the attention of an 0b10 checkpoint 23775 | -5/Upper Caves | Discovered new exit (range 9) 23825 | -5/Upper Caves | Identified exit to Upper Caves 23912 | -5/Upper Caves | Entered another Upper Caves area 23914 | -5/Upper Caves | Discovered new exit (range 16) 24156 | -5/Upper Caves | Learned Extension security intel 24186 | -5/Upper Caves | Destroyed VI-LS0(g) 24527 | -5/Upper Caves | Spotted M5-UWT(f) 24528 | -5/Upper Caves | Encountered a Master Thief 24528 | -5/Upper Caves | Spotted X9-ZWH(f) 24528 | -5/Upper Caves | Lyr. Medium Armor Plating stolen by Master Thief 24529 | -5/Upper Caves | Encountered a Master Thief 24529 | -5/Upper Caves | Prototype Hackware stolen by Master Thief 24529 | -5/Upper Caves | Destroyed X9-ZWH(f) 24530 | -5/Upper Caves | Spotted DG-6X3(f) 24531 | -5/Upper Caves | Encountered a Master Thief 24531 | -5/Upper Caves | Spotted RU-67W(f) 24532 | -5/Upper Caves | Encountered a Master Thief 24532 | -5/Upper Caves | Spotted F8-03X(f) 24533 | -5/Upper Caves | Encountered a Master Thief 24536 | -5/Upper Caves | Prototype Hackware stolen by Master Thief 24543 | -5/Upper Caves | Particle Reactor stolen by Master Thief 24543 | -5/Upper Caves | Neutron Cannon stolen by Master Thief 24550 | -5/Upper Caves | Destroyed RU-67W(f) 24706 | -5/Upper Caves | Discovered new exit (range 14) 24728 | -5/Upper Caves | Identified exit to Warlord 24731 | -5/Upper Caves | Entered Warlord 24793 | -5/Warlord | System corruption cleaned by Quarantine Array 24870 | -5/Warlord | Build established: Scavenger-Mutant 25528 | -5/Warlord | Received a Watcher feed algorithm from an ecstatic Tinkerer 25578 | -5/Warlord | Met Warlord 25595 | -5/Warlord | Opened Warlord's prototype stash 25603 | -5/Warlord | Warlord's base attacked by MAIN.C 25622 | -5/Warlord | Found Prototype Reactor 25622 | -5/Warlord | Identified Vortex Chain Reactor 25644 | -5/Warlord | Found Prototype Device 25644 | -5/Warlord | Identified Thermal Barrier 25659 | -5/Warlord | Found Prototype Hackware 25835 | -5/Warlord | Spotted B-86 Titan 25839 | -5/Warlord | Spotted B-75 Beast 25945 | -5/Warlord | Spotted Striker 25953 | -5/Warlord | Warlord forces counterattacked 25956 | -5/Warlord | Spotted Executioner 25978 | -5/Warlord | Found Prototype Processor 25983 | -5/Warlord | Found Prototype Processor 26047 | -5/Warlord | Spotted Striker 26048 | -5/Warlord | Spotted Executioner 26093 | -5/Warlord | Discovered new exit (range 9) 26106 | -5/Warlord | Identified exit to Proximity Caves 26109 | -5/Warlord | Entered Proximity Caves 26118 | -4/Proximity Caves | Learned Research stockpile data 26211 | -4/Proximity Caves | Build established: Mutant 26272 | -4/Proximity Caves | Spotter reported a threat 26397 | -4/Proximity Caves | Learned Research terminal intel 26787 | -4/Proximity Caves | Discovered new exit (range 6) 26830 | -4/Proximity Caves | Identified exit to Factory 26846 | -4/Proximity Caves | Entered Factory 26846 | -4/Factory | Evolved 2 slots: Propulsion x2 26867 | -4/Factory | Identified System Mapper 26869 | -4/Factory | Identified exit to Upper Caves 26869 | -4/Factory | Identified exit to Extension 26869 | -4/Factory | Identified exit to Armory 26907 | -4/Factory | Build established: Scavenger-Mutant 26932 | -4/Factory | Found Quantum Capacitor 27453 | -4/Factory | Destroyed 8 combat bots 27545 | -4/Factory | Entered Extension 27722 | -4/Extension | Build established: Hacker-Mutant 28060 | -4/Extension | Rescued A7 28132 | -4/Extension | Rescued a captive Derelict 28132 | -4/Extension | Rescued a captive Derelict 28243 | -4/Extension | Identified Exp. Targeting Computer 28247 | -4/Extension | Identified Exp. Core Analyzer 28273 | -4/Extension | Identified Ghost Barrier 28285 | -4/Extension | Identified Deep Network Scanner 28376 | -4/Extension | Spotted B-86 Titan 28402 | -4/Extension | Allies destroyed B-86 Titan 28409 | -4/Extension | Spotted B-86 Titan 28431 | -4/Extension | Allies destroyed B-86 Titan 28504 | -4/Extension | Rescued a captive Derelict 28509 | -4/Extension | Rescued a captive Derelict 28515 | -4/Extension | Rescued a captive Derelict 28628 | -4/Extension | Rescued a captive Derelict 28764 | -4/Extension | Discovered new exit (range 10) 28765 | -4/Extension | Discovered new exit (range 6) 28783 | -4/Extension | Entered Cetus 28783 | -4/Cetus | Accompanied by 14 allies (A7) 28788 | -4/Cetus | Acquired a Cetus Manufacturing Module code from A7 28800 | -4/Cetus | Spotted Cetus Guard 28800 | -4/Cetus | Spotted Cetus Guard 28802 | -4/Cetus | Spotted Cetus Guard 28805 | -4/Cetus | Spotted Cetus Guard 28811 | -4/Cetus | Allies destroyed Cetus Guard 28818 | -4/Cetus | Destroyed Cetus Guard 28822 | -4/Cetus | Destroyed Cetus Guard 28824 | -4/Cetus | Allies destroyed Cetus Guard 28847 | -4/Cetus | Cetus Manufacturing Module disabled 28889 | -4/Cetus | Discovered new exit (range 15) 28911 | -4/Cetus | Spotted Cetus Guard 28912 | -4/Cetus | Spotted Cetus Guard 28912 | -4/Cetus | Spotted Cetus Guard 28915 | -4/Cetus | Destroyed Cetus Guard 28916 | -4/Cetus | Destroyed Cetus Guard 28918 | -4/Cetus | Allies destroyed Cetus Guard 28920 | -4/Cetus | Spotted Cetus Guard 28922 | -4/Cetus | Extracted ID and sensor layout for unrecognized location from A7's data core 28927 | -4/Cetus | Destroyed Cetus Guard 28940 | -4/Cetus | Discovered new exit (range 15) 28949 | -4/Cetus | Met Revision 17 29096 | -4/Cetus | Entered Archives 29096 | -4/Archives | Accompanied by 4 allies 29295 | -4/Archives | Build established: Scavenger-Mutant 30570 | -4/Archives | Discovered new exit (range 14) 30586 | -4/Archives | Entered Hub_04(d) 30586 | -4/Hub_04(d) | Accompanied by 3 allies 30788 | -4/Hub_04(d) | Network Hub disabled 30834 | -4/Hub_04(d) | Found Prototype Processor 30849 | -4/Hub_04(d) | Identified exit to Research 30933 | -4/Hub_04(d) | Spotted Lightning 30933 | -4/Hub_04(d) | Spotted Lightning 30934 | -4/Hub_04(d) | Spotted Lightning 31008 | -4/Hub_04(d) | Spotted Lightning 31009 | -4/Hub_04(d) | Entered Research 31009 | -3/Research | Evolved 2 slots: Power x1, Utility x1 31011 | -3/Research | Loaded intel: 23 terminal locations 31205 | -3/Research | Repaired Enh. Biometal Leg 31549 | -3/Research | Discovered new exit (range 15) 31579 | -3/Research | Fabricated Enh. Nova Cannon? 31713 | -3/Research | Spotted B-86 Titan 31728 | -3/Research | Found Heavy Servo Lattice 31849 | -3/Research | Build established: Hacker-Mutant 31999 | -3/Research | Found Adv. Powered Armor 32403 | -3/Research | Befriended a Behemoth using the annoying Tinkerer's hack 32414 | -3/Research | Identified exit to Research 32499 | -3/Research | Entered Testing 32521 | -3/Testing | Protovariant out of control (PX-CZ0Y4UEYM1) 32557 | -3/Testing | Identified Exp. Signal Interpreter 32576 | -3/Testing | Found Prototype Energy Cannon 32576 | -3/Testing | Identified Imp. Potential Cannon 32628 | -3/Testing | Build established: Scavenger-Mutant 32831 | -3/Testing | Found Prototype Launcher 32849 | -3/Testing | Repaired Quantum Capacitor 32868 | -3/Testing | Identified Mni. Smartbomb Launcher 33083 | -3/Testing | Scanned by Researcher 33262 | -3/Testing | Found Prototype Device 33429 | -3/Testing | Identified Exp. Shield Generator 33497 | -3/Testing | Build established: Hacker-Mutant 33595 | -3/Testing | Found Prototype Processor 33605 | -3/Testing | Identified Exp. Terrain Scan Processor 33889 | -3/Testing | Spotted Striker 33894 | -3/Testing | Spotted Striker 34025 | -3/Testing | Found Prototype Protection 34209 | -3/Testing | Found Prototype Launcher 34300 | -3/Testing | Build established: Mutant 34306 | -3/Testing | Found Prototype Device 34308 | -3/Testing | Identified Exp. Hardlight Generator 34415 | -3/Testing | Found Prototype Energy Gun 34415 | -3/Testing | Identified Warp Gun 34454 | -3/Testing | Found Prototype Device 34454 | -3/Testing | Identified AEGIS Remote Shield 34675 | -3/Testing | Found System Mapper 34713 | -3/Testing | Discovered exit to Research (range 8) 34749 | -3/Testing | First assault squad dispatched 34749 | -3/Testing | Entered Research 34749 | -2/Research | Warlord forces began assault on 0b10 34749 | -2/Research | Evolved 2 slots: Propulsion x1, Utility x1 34768 | -2/Research | Identified Z-bomb Delivery System 34779 | -2/Research | Identified Hvy. Regenerative Plating 34830 | -2/Research | Repaired Adv. Powered Armor 34859 | -2/Research | Research machine network offline 35082 | -2/Research | Build established: Hacker-Mutant 35348 | -2/Research | Borebot progress halted 35354 | -2/Research | Borebot progress halted 35359 | -2/Research | Spotted Executioner 35361 | -2/Research | Spotted Executioner 35367 | -2/Research | Destroyed Executioner 35377 | -2/Research | Destroyed Executioner 35396 | -2/Research | System corruption reached 10% 35442 | -2/Research | Spotted Executioner 35454 | -2/Research | Spotted Executioner 35467 | -2/Research | Spotted Executioner 35471 | -2/Research | Spotted Executioner 35474 | -2/Research | Destroyed Executioner 35478 | -2/Research | Destroyed Executioner 35483 | -2/Research | Destroyed Executioner 35487 | -2/Research | Destroyed Executioner 35508 | -2/Research | Borebot progress halted 35510 | -2/Research | Lost 3 parts (1p1u1w) 35511 | -2/Research | Destroyed 10 combat bots 35521 | -2/Research | Spotted Striker 35528 | -2/Research | Destroyed Striker 35538 | -2/Research | Spotted Striker 35548 | -2/Research | Destroyed Striker 35573 | -2/Research | Discovered new exit (range 8) 35579 | -2/Research | Identified exit to Access 35652 | -2/Research | Build established: Scavenger-Mutant 35829 | -2/Research | Discovered new exit (range 13) 35847 | -2/Research | Identified exit to Quarantine 35855 | -2/Research | Entered Quarantine 35866 | -2/Quarantine | Spotted Alpha 7 36126 | -2/Quarantine | Destroyed 7 combat bots 36130 | -2/Quarantine | Found Alien Artifact 36195 | -2/Quarantine | Identified Core Reset Matrix 36195 | -2/Quarantine | Used Core Reset Matrix 36199 | -2/Quarantine | Detected hypermatrix surge 36199 | -2/Quarantine | Sensed 13 artifacts in vicinity 36244 | -2/Quarantine | Found Sigix Broadsword 36355 | -2/Quarantine | First assault squad dispatched 36361 | -2/Quarantine | Found Dimensional Node Initializer 36361 | -2/Quarantine | Initialized slip node 36391 | -2/Quarantine | Found Hpw. Transdimensional Reconstructor 36397 | -2/Quarantine | Found Transdimensional Reconstructor 36400 | -2/Quarantine | Found Transdimensional Reconstructor 36405 | -2/Quarantine | Found Hpw. Transdimensional Reconstructor 36497 | -2/Quarantine | Found Quantum Capacitor 36625 | -2/Quarantine | Warped through subspace to slip node 36629 | -2/Quarantine | Found Dimensional Node Initializer 36629 | -2/Quarantine | Initialized slip node 36733 | -2/Quarantine | Build established: Wizard-Mutant 36767 | -2/Quarantine | Found Subatomic Replicator 36844 | -2/Quarantine | Spotted Fortress 36945 | -2/Quarantine | Discovered new exit (range 6) 36950 | -2/Quarantine | Identified exit to Section 7 37123 | -2/Quarantine | Entered Section 7 37124 | -2/Section 7 | Sensed 24 artifacts in vicinity 37140 | -2/Section 7 | Found Integrity Redistributor 37322 | -2/Section 7 | Found Integrity Redistributor 37450 | -2/Section 7 | Warped through subspace 37525 | -2/Section 7 | Found Integrated Reactor 37525 | -2/Section 7 | Installed Integrated Reactor, increased core energy generation (+10) 37585 | -2/Section 7 | Build established: Hacker-Mutant 37783 | -2/Section 7 | Spotted S7 Guard 37793 | -2/Section 7 | Found Core Regenerator 37793 | -2/Section 7 | Used Core Regenerator, restored core integrity (+362) 38075 | -2/Section 7 | Spotted S7 Guard 38090 | -2/Section 7 | Found Core Membrane 38090 | -2/Section 7 | Installed Core Membrane, gained immunity to corruption 38137 | -2/Section 7 | Destroyed S7 Guard 38221 | -2/Section 7 | Spotted Alpha 7 38240 | -2/Section 7 | Spotted S7 Guard 38274 | -2/Section 7 | Warped through subspace 38498 | -2/Section 7 | Discovered exit to Access (range 13) 38549 | -2/Section 7 | Found Quantum Capacitor 38623 | -2/Section 7 | First assault squad dispatched 38660 | -2/Section 7 | Found Spacefold Activator 38852 | -2/Section 7 | Repaired Enh. Biometal Leg 38888 | -2/Section 7 | Spotted Executioner 38888 | -2/Section 7 | Spotted Executioner 38892 | -2/Section 7 | Destroyed Executioner 38895 | -2/Section 7 | Destroyed Executioner 38942 | -2/Section 7 | Found Transdimensional Reconstructor 38946 | -2/Section 7 | Found Transdimensional Reconstructor 38949 | -2/Section 7 | Warped through subspace 38951 | -2/Section 7 | Found Hpw. Transdimensional Reconstructor 38999 | -2/Section 7 | Spotted B-99 Colossus 39067 | -2/Section 7 | Found LRC Insulator 39067 | -2/Section 7 | Installed LRC Insulator, gained EM resistance (25) 39075 | -2/Section 7 | Found LRC Energy Well 39075 | -2/Section 7 | Installed LRC Energy Well, increased energy storage capacity (+250) 39078 | -2/Section 7 | Found LRC Matter Compressor 39078 | -2/Section 7 | Installed LRC Matter Compressor, increased matter storage capacity (+125) 39120 | -2/Section 7 | Found Integrated Dissipator 39120 | -2/Section 7 | Installed Integrated Dissipator, increased core heat dissipation (+20) 39163 | -2/Section 7 | Used Subatomic Replicator to create Supercharged Integrated Reactor 39165 | -2/Section 7 | Found Integrated Reactor 39165 | -2/Section 7 | Installed Integrated Reactor, increased core energy generation (+10) 39167 | -2/Section 7 | Installed Supercharged Integrated Reactor, increased core energy generation (+15) 39170 | -2/Section 7 | Found Integrated Reactor 39170 | -2/Section 7 | Installed Integrated Reactor, increased core energy generation (+10) 39202 | -2/Section 7 | Warped through subspace 39202 | -2/Section 7 | Spotted Striker 39202 | -2/Section 7 | Spotted Striker 39204 | -2/Section 7 | Spotted Executioner 39204 | -2/Section 7 | Spotted Executioner 39213 | -2/Section 7 | Core integrity fell below 50% 39255 | -2/Section 7 | Destroyed Executioner 39257 | -2/Section 7 | Destroyed Executioner 39275 | -2/Section 7 | Found Corrupted Prototype Device 39275 | -2/Section 7 | Identified Adv. Kinecellerator 39309 | -2/Section 7 | Found Terrabomb 39377 | -2/Section 7 | Found Corrupted Prototype Processor 39377 | -2/Section 7 | Identified Exp. Core Analyzer 39384 | -2/Section 7 | Found Corrupted Exp. Core Analyzer 39518 | -2/Section 7 | Entered Access 39518 | -1/Access | Evolved 2 slots: Weapon x2 39830 | -1/Access | Build established: Alien-Mutant 40133 | -1/Access | Discovered new exit (range 7) 40138 | -1/Access | Identified exit to Command 40139 | -1/Access | Entered Command 40213 | -1/Command | Found Quantum Capacitor 40612 | -1/Command | Spotted M Guard 40612 | -1/Command | Spotted M Guard 40612 | -1/Command | Spotted Combat Programmer 40624 | -1/Command | Destroyed Combat Programmer 40628 | -1/Command | Destroyed Combat Programmer 40642 | -1/Command | Destroyed M Guard 40651 | -1/Command | Destroyed M Guard 40651 | -1/Command | All MAIN.C guards destroyed 40676 | -1/Command | Lost 4 parts (4u) 40683 | -1/Command | First assault squad dispatched 40686 | -1/Command | Found Corrupted Zero-point Reactor 40689 | -1/Command | Found Corrupted AEGIS Remote Shield 40698 | -1/Command | Found Corrupted Hvy. Regenerative Plating 40707 | -1/Command | Found Corrupted Prototype Launcher 40707 | -1/Command | Identified Hellfire Missile Launcher 40757 | -1/Command | Found Corrupted Prototype Device 40757 | -1/Command | Identified Thermal Barrier 40875 | -1/Command | Disengaged cave seal 40878 | -1/Command | Welcomed Warlord to Command 41010 | -1/Command | Warlord commented on Warlord statues 41034 | -1/Command | Found Corrupted AEGIS Remote Shield 41104 | -1/Command | Met MAIN.C 41106 | -1/Command | 0b10 Conduit disabled 41125 | -1/Command | MAIN.C activated Command garrisons 41164 | -1/Command | Used Integrity Redistributor, redistributed integrity from core (-483) 41190 | -1/Command | Destroyed MAIN.C 41194 | -1/Command | Lost 4 parts (1p1n2u) 41646 | -1/Command | Discovered new exit (range 7) 41956 | -1/Command | Found Zero-point Reactor 41960 | -1/Command | Found Prototype Processor 41960 | -1/Command | Identified Spectral Analyzer 42605 | -1/Command | Found Imp. Potential Cannon 42793 | -1/Command | Found Quantum Capacitor 42886 | -1/Command | Found Exp. Core Analyzer 46987 | -1/Command | Found Prototype Processor 46987 | -1/Command | Identified Exp. Target Analyzer 46991 | -1/Command | Found Exp. Targeting Computer 47322 | -1/Command | Build established: Scavenger-Mutant 47657 | -1/Command | Attacked by Warlord forces 47698 | -1/Command | Found Exp. Targeting Computer 48170 | -1/Command | Found Prototype Device 48170 | -1/Command | Identified Exp. Cloaking Device 48174 | -1/Command | Found Prototype Device 48174 | -1/Command | Identified Exp. System Purifier 48457 | -1/Command | Build established: Alien-Mutant 48721 | -1/Command | Found Prototype Reactor 48798 | -1/Command | Build established: Scavenger-Mutant 48983 | -1/Command | Found Quantum Capacitor 49270 | -1/Command | Build established: Alien-Mutant 49515 | -1/Command | Warped through subspace to slip node 49515 | -1/Command | Discovered new exit (range 4) 49521 | -1/Command | Entered Access_0 49522 | -1/Access_0 | Sensed 2 artifacts in vicinity 49522 | -1/Access_0 | Met Architect 49524 | -1/Access_0 | Core integrity fell below 50% 49525 | -1/Access_0 | Architect warped through subspace 49526 | -1/Access_0 | Destroyed A8 49552 | -1/Access_0 | Architect warped through subspace 49578 | -1/Access_0 | Architect warped through subspace 49603 | -1/Access_0 | Architect warped through subspace 49634 | -1/Access_0 | Architect warped through subspace 49655 | -1/Access_0 | Architect warped through subspace 49662 | -1/Access_0 | Found Integrated Reactor 49662 | -1/Access_0 | Installed Integrated Reactor, increased core energy generation (+10) 49680 | -1/Access_0 | Architect warped through subspace 49723 | -1/Access_0 | Architect warped through subspace 49742 | -1/Access_0 | Architect warped through subspace 49748 | -1/Access_0 | A6 warped into view 49755 | -1/Access_0 | Destroyed A6 49760 | -1/Access_0 | Architect warped through subspace 49798 | -1/Access_0 | Subspace Access Node disabled 49810 | -1/Access_0 | Architect warped through subspace 49828 | -1/Access_0 | Architect warped through subspace 49857 | -1/Access_0 | Architect warped through subspace 49885 | -1/Access_0 | Architect warped through subspace 49914 | -1/Access_0 | Architect warped through subspace 49955 | -1/Access_0 | Architect warped through subspace 50017 | -1/Access_0 | Architect warped through subspace 50023 | -1/Access_0 | Subspace Access Node disabled 50039 | -1/Access_0 | Architect warped through subspace 50064 | -1/Access_0 | Architect warped through subspace 50135 | -1/Access_0 | Architect warped through subspace 50145 | -1/Access_0 | Architect warped through subspace 50156 | -1/Access_0 | Architect warped through subspace 50169 | -1/Access_0 | Architect warped through subspace 50175 | -1/Access_0 | Architect warped through subspace 50179 | -1/Access_0 | Architect warped through subspace 50184 | -1/Access_0 | A5 warped into view 50190 | -1/Access_0 | Core integrity fell below 20% 50197 | -1/Access_0 | Destroyed A5 50203 | -1/Access_0 | Architect warped through subspace 50222 | -1/Access_0 | Subspace Access Node disabled 50238 | -1/Access_0 | Subspace Access Node disabled 50242 | -1/Access_0 | Lost 4 parts (1p2u1w) 50262 | -1/Access_0 | Destroyed Architect 50263 | -1/Access_0 | Architect triggered a singularity event 50264 | -1/Access_0 | Warped through subspace to slip node 50264 | -1/Access_0 | Discovered new exit (range 8) 50265 | -1/Access_0 | Released all parts (14) 50268 | *** | Escaped singularity! Last Messages --------------- 50264_ A0_COM: 10. 50264_ Warped through subspace, drawn to slip node. 50264_ EXIT=FOUND 50265_ A0_COM: 9. 50265_ Released Lrg. Storage Unit. 50265_ Released Exp. Biometal Heavy Treads. 50265_ Released Hdn. Centrium Leg. 50265_ Released Exp. Core Analyzer. 50265_ Released Hdn. Centrium Leg. 50265_ Released Zero-point Reactor. 50265_ Released Hdn. Centrium Leg. 50265_ Released Exp. Targeting Computer. 50265_ Released Exp. Cooling System. 50265_ Released Imp. Potential Cannon. 50265_ Released Hdn. Centrium Leg. 50265_ Released AEGIS Remote Shield. 50265_ Released Antimatter Reactor. 50266_ A0_COM: 8. 50267_ A0_COM: 7. 50268_ A0_COM: 6. Map ----- +----------------------------------------------------+ | | | | | | | | | | | | | | | | | | | | | | | | | | | | | | | | | ?????????????????????????????????????????????????? | | ?????????????????????????????????????????????????? | | ?????????????????????????????????????????????????? | | ?????????????????????????????????????????????????? | | ?????????????????????????????????????????????????? | | ?????????????????????????????????????????????????? | | ????????????????????????###??????????????????????? | | ???????????????????????## ##?????????????????????? | | ???????????????????????# #?????????????????????? | | ???????????????????????# @ #?????????????????????? | | ??????????????????????## #?????????????????????? | | ??????????????????????# #?????????????????????? | | ??????????????????????# ##?????????????????????? | | ??????????????????????##* #?????????????????????? | | ??????????????????????#]==!#?????????????????????? | | ??????????????????????#!!=##?????????????????????? | | ??????????????????????#!!!*#?????????????????????? | | ??????????????????????#===##?????????????????????? | | ??????????????????????##*!#??????????????????????? | | ???????????????????????####??????????????????????? | | ?????????????????????????????????????????????????? | | ?????????????????????????????????????????????????? | | ?????????????????????????????????????????????????? | | ?????????????????????????????????????????????????? | | ?????????????????????????????????????????????????? | | ?????????????????????????????????????????????????? | | ?????????????????????????????????????????????????? | | ?????????????????????????????????????????????????? | | ?????????????????????????????????????????????????? | | ?????????????????????????????????????????????????? | | ?????????????????????????????????????????????????? | | ?????????????????????????????????????????????????? | | ?????????????????????????????????????????????????? | | ?????????????????????????????????????????????????? | +----------------------------------------------------+ Best States ------------- Heat Dissipation 148 Coolant Potential 220 Energy Generation 143 Energy Capacity 2200 Matter Stores 425 Matter Capacity 925 Sight Range 24 Robot Scan Range 16 Terrain Scan Density 10 Jamming Range 16 Power Amplification 30 Additional Mass Support 20 EM Shielding 4 Corruption Block 8 Armor Coverage 2400 Resistance: KI 15 Resistance: TH 30 Resistance: EX 15 Resistance: EM 25 Resistance: I 15 Resistance: S 15 Resistance: P 15 Core Shielding 20 Weapon Shielding 90 Point Defense Rating 160 Weapon Cycling 25 Evasion (%) 55 Targeting Accuracy 32 Launcher Accuracy 40 Core Analysis 8 Armor Integrity Analysis 40 Recoil Reduction 4 Matter Filtering 50 Energy Filtering 50 Offensive Hacking 45 Defensive Hacking 20 Trap Extractor Capacity 4 Item Schematics ----------------- Centrium Leg | -2/Quarantine | Scanalyzed Com. HERF Cannon | -2/Quarantine | Scanalyzed Exp. Terrain Scan Processor | -2/Quarantine | Scanalyzed Com. Linear Accelerator | -2/Section 7 | Hacked Enh. Nova Cannon | -2/Section 7 | Hacked Robot Schematics ------------------ None Fabricated ------------ Enh. Nova Cannon | x1 | -3/Research | Preloaded Alien Tech Used ----------------- Core Reset Matrix Dimensional Node Initializer Transdimensional Reconstructor Sigix Broadsword Integrated Reactor Core Regenerator Core Membrane High-powered Transdimensional Reconstructor LRC Insulator LRC Energy Well LRC Matter Compressor Integrated Dissipator Subatomic Replicator Supercharged Integrated Reactor Integrity Redistributor Achievements -------------- None Challenges ------------ None Game ------ Seed ThermicRocketBarrier Manual? 0 Play Time 05:56:10 Cumulative 838.9 hours Start 2023.07.31 @ 22:16:33 End 2023.08.03 @ 23:47:08 Sessions 7 Manual Loads 0 Difficulty Rogue Special Mode None Game No. 718 Rogue 718 Adventurer 0 Explorer 0 Win Type 6 Total 41 Types 14/7/8/1/1/1/7/1/1 Lore% 93 Gallery% 96 Achievement% 82 Wizard Run 0 Options --------- ASCII 0 Keyboard 0 Movement Mouse Keybinds 1 Fullscreen 2 Font 24/Smallcaps Map View 76x50 Tactical HUD 1 Map Filters NONE Filters NONE Steam 1 RUN: 14f5bdc9-3afd-4400-bd37-fd3c5a11b860